Cogmind - Beta 17 @@@ ROGUE MODE // 2026.06.28 @ 14:55:07 Player: szymekc Result: Heading to fleet! Performance ------------- Evolutions (9) 4500 Regions Visited (27) 5400 Robots Destroyed (728) 3640 Value Destroyed (44744) 44744 Prototype IDs (150) 3000 Alien Tech Used (17) 3400 Bonus (63581) 63581 TOTAL SCORE: 128265 Bonus ------- Triggered High Security 1500 High Alert Combat Kills 28037 Follower Combat Kills 768 Prayed to X0-1V1 5000 Major X0-1V1 Interference 16850 Registered with UFD 300 Met Optimus in HQ 500 Met Data Miner 300 MAIN.C Attacked Warlord 500 Warlord Defense Kills 3006 Used Core Reset Matrix 3000 Scanned by Researcher 500 Pursued by Intercept 1000 Win 3000 Friendly Fire -680 Cogmind --------- Core Integrity 471/1850 Matter 779/900 Energy 758/775 System Corruption 0% +Membrane Temperature Cool (9) Movement Treading (161) Location To Fleet Rendezvous Parts ------- > --- POWER (3) -------- Reinforced Antimatter Reactor > --- PROPULSION (5) --- Armored Medium Treads Armored Heavy Treads Biometal Heavy Treads > --- UTILITY (13) ----- Advanced Cooling System Huge Storage Unit Experimental Optical Array Experimental Targeting Computer Advanced Weapon Cycler Experimental Transmission Jammer Microwarp Drive > --- WEAPON (5) ------- Enhanced Hardcell Cannon Enhanced Hardcell Cannon Ragnarok Missile Launcher Plasma Lance > --- INVENTORY (27) --- Advanced Heavy Treads Advanced Heavy Treads Biometal Heavy Treads Experimental Energy Well (600) Centrium Heavy Armor Plating HERF Cannon Improved Matter Neutralizer Improved Potential Cannon Helical Railgun Compact Mass Driver Ragnarok Missile Launcher Ragnarok Missile Launcher Peak State ------------ > --- POWER ------------ Quantum Reactor Light Quantum Reactor Improved Quantum Reactor > --- PROPULSION ------- Biometal Leg Biometal Leg Centrium Leg Heavy Shield Leg High-density Centrium Leg > --- UTILITY ---------- Advanced Heat Sink Experimental Heat Sink Huge Storage Unit Experimental Optical Array Experimental Targeting Computer Experimental Core Analyzer Experimental Weapon Cycler Experimental Transmission Jammer Advanced Reaction Control System Centrium Light Armor Plating Improved Focal Shield X0-1V1's Piety Tracker Core Physics Calibrator > --- WEAPON ----------- Cooled Nova Cannon Perforator Plasma Lance > --- INVENTORY -------- Light Quantum Reactor Biometal Heavy Treads Experimental Biometal Heavy Treads High-density Centrium Heavy Treads Centrium Leg Experimental Core Analyzer Heavy Armor Plating Experimental EM Shield Transdimensional Reconstructor Microwarp Drive Heavy Quantum Rifle Enhanced Nova Cannon Enhanced Nova Cannon Potential Cannon Improved Potential Cannon Enhanced Hardcell Cannon Enhanced Hardcell Cannon Enhanced Hardcell Cannon Heavy Scimitar of Distortion [Rating: 261] Favorites ----------- Power Vortex Chain Reactor Engine Improved Ion Engine Power Core Backup Power VII Reactor Vortex Chain Reactor Propulsion Enhanced Biometal Leg Treads Light Treads Leg Enhanced Biometal Leg Wheel Wheel Hover Unit Linear Gravjet Flight Unit Field Propulsion Drive Utility Self-contained Transmogrifier Device Self-contained Transmogrifier Storage Large Storage Unit Processor Experimental Targeting Computer Hackware Advanced Hacking Suite Protection Centrium Heavy Armor Plating Artifact Phase Armor Weapon Helical Railgun Energy Gun Plasma Storm Energy Cannon Neutron Cannon Ballistic Gun Helical Railgun Ballistic Cannon Compact Mass Driver Launcher Mini Smartbomb Launcher Special Weapon Molecular Deconstructor Impact Weapon Heavy Mace Slashing Weapon Heavy Scimitar of Distortion Piercing Weapon Lance Build | -11 -10 -10 -10 -9 -9 -6 -6 -6 -6 -5 -5 -5 -5 -5 -4 -4 -4 -4 -4 -3 -3 -3 -2 -2 -2 -1 -1 ------- Run | Yrd Mat Min Sub Rec Scr Fac Low Low Dat Pro Fac Upp Upp War Pro Fac Upp Upp Zhi Pro Res Qua Res Tes Sec Acc Com Slots Evolved 18 | . . . . . . 8 . . . . 2 . . . . 2 . . . . 2 . 2 . . 2 . Power 1 | . . . . . . . . . . . . . . . . . . . . . . . . . . 1 . Propulsion 4 | . . . . . . 5 . . . . . . . . . . . . . . . . . . . -1 . Utility 12 | . . . . . . 1 . . . . 2 . . . . 2 . . . . 1 . 2 . . 4 . Weapon 1 | . . . . . . 2 . . . . . . . . . . . . . . 1 . . . . -2 . Parts Attached 331 | 7 7 6 18 6 2 34 8 9 5 . 9 5 5 18 . 5 4 . 2 4 9 6 3 29 52 65 13 Power 44 | 1 . 2 3 2 1 7 . 2 1 . 1 1 1 1 . . . . . . . . . 2 8 10 1 Engine 16 | 1 . 2 3 2 1 5 . 2 . . . . . . . . . . . . . . . . . . . Core 6 | . . . . . . 1 . . . . 1 1 1 . . . . . . . . . . . . 2 . Reactor 22 | . . . . . . 1 . . 1 . . . . 1 . . . . . . . . . 2 8 8 1 Propulsion 78 | 2 1 2 7 3 . 9 2 1 1 . 2 1 . 5 . . 1 . . . 2 . 1 5 16 14 3 Treads 31 | 2 1 2 3 1 . 4 1 . . . . 1 . . . . . . . . . . . . 1 12 3 Leg 34 | . . . . . . 3 1 . 1 . . . . 3 . . 1 . . . 2 . 1 5 15 2 . Wheel 7 | . . . 4 2 . . . 1 . . . . . . . . . . . . . . . . . . . Hover 3 | . . . . . . 1 . . . . 1 . . 1 . . . . . . . . . . . . . Flight 3 | . . . . . . 1 . . . . 1 . . 1 . . . . . . . . . . . . . Utility 119 | 2 3 . 2 . 1 10 4 . . . 4 1 1 7 . 4 1 . 2 3 4 4 2 13 17 28 6 Device 80 | 2 2 . 1 . . 8 4 . . . 2 1 1 5 . 2 1 . . 2 2 2 1 12 9 20 3 Storage 8 | . 1 . 1 . 1 1 . . . . . . . . . . . . . . . . . 1 2 . 1 Processor 11 | . . . . . . 1 . . . . 1 . . 1 . 2 . . . . . 1 . . 4 1 . Hackware 3 | . . . . . . . . . . . . . . . . . . . . . 2 . . . . . 1 Protection 13 | . . . . . . . . . . . 1 . . 1 . . . . 2 1 . . . . 1 6 1 Artifact 4 | . . . . . . . . . . . . . . . . . . . . . . 1 1 . 1 1 . Weapon 90 | 2 3 2 6 1 . 8 2 6 3 . 2 2 3 5 . 1 2 . . 1 3 2 . 9 11 13 3 Energy Gun 14 | . . 1 . . . 2 . 3 1 . . . 2 . . . . . . . . 1 . 2 2 . . Energy Cannon 21 | . 1 . 3 . . 1 1 . 1 . . . . 2 . 1 . . . . 1 . . 3 1 6 . Ballistic Gun 19 | 2 . 1 1 1 . . . . . . 1 . . 3 . . . . . . . 1 . 1 3 4 1 Ballistic Cannon 15 | . 1 . . . . 1 . . . . 1 1 . . . . 2 . . 1 1 . . 1 4 2 . Launcher 7 | . . . 1 . . 1 . 1 . . . . 1 . . . . . . . . . . . . 1 2 Special Weapon 4 | . 1 . . . . 1 . . 1 . . 1 . . . . . . . . . . . . . . . Impact Weapon 4 | . . . 1 . . 1 . 1 . . . . . . . . . . . . . . . 1 . . . Slashing Weapon 3 | . . . . . . 1 1 . . . . . . . . . . . . . . . . 1 . . . Piercing Weapon 3 | . . . . . . . . 1 . . . . . . . . . . . . 1 . . . 1 . . Special Melee Weapon . | . . . . . . . . . . . . . . . . . . . . . . . . . . . . Unidentified Prototypes 80 | . 1 . . . . 6 . . . . . 1 . 13 . 2 . . 2 . 1 5 1 22 15 9 2 Corrupted Parts 5 | . . . . . . . 1 . 1 . . . . 3 . . . . . . . . . . . . . System Corruption 30 | . . . . . . . 7 . 1 . . . . 22 . . . . . . . . . . . . . Parts Lost 96 | . 1 . 6 3 . 6 3 9 6 . 2 5 2 . . . . . 4 1 1 . . . 13 25 9 Power 22 | . . . 3 2 . 1 . 2 2 . . 2 . . . . . . . . . . . . 2 6 2 Propulsion 23 | . . . 1 1 . 2 . 3 1 . 2 1 1 . . . . . . . . . . . 6 4 1 Utility 28 | . . . . . . 1 2 . . . . . 1 . . . . . 3 1 1 . . . 4 10 5 Weapon 23 | . 1 . 2 . . 2 1 4 3 . . 2 . . . . . . 1 . . . . . 1 5 1 Highest Loss Streak 8 | . 1 . 3 1 . 2 1 8 6 . 1 2 2 . . . . . 4 1 1 . . . 6 5 6 To Critical Strikes . | . . . . . . . . . . . . . . . . . . . . . . . . . . . . Average Backups 13 | 2 8 14 18 18 15 9 9 8 8 8 7 10 6 10 10 10 11 11 10 9 10 11 11 13 18 19 17 Power . | 1 1 . . . . . . . . . . . . . 1 1 1 2 1 1 1 1 1 . . 1 . Propulsion 1 | . 1 4 6 5 1 . . . . . . . . . 1 1 . . . . . . . . 1 3 4 Utility 4 | . 1 4 5 6 5 4 5 5 5 6 5 5 4 5 5 5 5 5 5 3 3 4 2 1 4 3 3 Weapon 5 | . 3 4 5 7 6 1 2 1 1 . 1 4 2 3 3 3 4 4 4 4 4 3 4 7 7 9 9 Tool/Special . | . . . . . . . . . . . . . . . . . . . . . . . . . . . . Unused Backups 76 | 1 2 3 5 . 6 10 1 . . . 1 . . 4 1 1 . . 2 . 2 2 . 8 14 6 7 Power 8 | 1 1 1 . . . . . . . . . . . . . . . . 1 . . 1 . . 2 1 . Propulsion 24 | . . . . . . 4 . . . . . . . 2 . . . . . . . . . . 8 4 6 Utility 19 | . . . 3 . 3 2 1 . . . . . . 1 1 1 . . 1 . . 1 . 1 3 . 1 Weapon 22 | . 1 2 2 . 3 3 . . . . . . . 1 . . . . . . 2 . . 7 1 . . Tool/Special 3 | . . . . . . 1 . . . . 1 . . . . . . . . . . . . . . 1 . Average Slot Usage (%) 87 | . 99 100 86 87 99 79 83 77 88 75 90 88 86 83 77 79 79 80 77 78 84 81 69 73 83 84 81 Engine 3 | . 13 15 10 10 4 4 6 1 8 . . . . . . . . . . . . . . . . . . Core 3 | . . . 1 2 11 4 3 2 . . . 4 9 5 . . . . . . . . . . . 2 1 Reactor 4 | . . . . . 7 2 2 . 2 6 5 1 . 4 5 5 5 5 5 5 4 4 4 6 7 7 8 Treads 4 | . 27 25 13 . . 2 . . . . . 2 . . . . . . . . . . . . . 10 11 Leg 11 | . . . . 2 . 14 21 23 24 25 26 24 22 21 22 20 20 20 20 20 18 18 16 19 25 3 . Hover 2 | . . . . . 11 6 . . . . 1 2 . . . . . . . . . . . . . . . Device 20 | . 20 13 12 25 25 16 17 18 18 18 24 25 25 17 16 15 15 15 13 17 22 21 28 24 18 22 18 Storage 6 | . 7 13 12 12 12 5 6 6 6 6 5 5 5 5 5 5 5 5 5 5 4 4 4 4 4 3 3 Processor 3 | . . . . . . . . . . . . . . . . 9 10 10 10 10 5 6 8 5 7 12 10 Protection 1 | . . . . . . . . . . . 1 . . 3 5 5 5 5 4 . . . . . . 4 6 Energy Gun 3 | . . 12 3 3 11 1 . 5 2 . . 2 9 6 . . . . . . . 1 4 3 2 . . Energy Cannon 4 | . 10 . 12 . . 8 18 7 8 12 5 3 . . 3 5 1 . . 4 4 3 . . . 5 8 Ballistic Gun 4 | . 13 18 7 2 . . . . . . 4 . . 4 15 15 11 10 10 8 . 2 . . 4 3 5 Ballistic Cannon 1 | . 1 . . . . . . . . 5 10 5 . . . . 7 10 9 6 13 9 . . 1 3 1 Launcher 1 | . . . . . . 5 . . 10 . . . 8 9 1 . . . . . . . . . . . . Impact Weapon 1 | . . . 2 13 5 1 . . . . . . . . . . . . . . . . . . . . . Slashing Weapon 2 | . . . . 3 7 1 5 2 . . . 3 . . . . . . . . . . . 1 3 . . Peak Build Rating 261 | 9 20 29 41 39 61 110 112 112 108 106 130 130 130 152 153 166 162 160 160 164 177 182 207 237 251 261 232 Average Rating 124 | 5 10 24 28 36 55 97 103 87 95 99 117 121 125 141 152 162 159 160 154 152 171 170 198 226 231 223 220 On Entrance 118 | . 9 20 29 37 38 49 101 112 81 101 100 130 106 128 152 153 162 160 160 143 161 172 182 199 233 195 213 Avg Prop Armor Cover (%) 6 | . . . 11 . . 10 5 2 4 . 1 4 5 . . . . . . . . . . . 5 4 . Naked Turns . | . . . . . . . . . . . . . . . . . . . . . . . . . . . . Heaviest Build 245 | 11 31 43 108 103 124 82 89 72 66 64 80 80 67 112 112 105 110 107 107 117 126 128 145 146 207 232 245 Greatest Support 206 | 40 40 40 43 20 16 100 116 122 117 117 130 117 124 140 140 140 140 140 140 140 140 133 136 178 206 178 175 Greatest Overweight (x) 15 | . 1 1 10 10 15 3 1 1 1 . . . . . . . . . . . . . 1 1 1 2 1 Average Overweight (x) 1 | . . . 4 6 8 . . . . . . . . . . . . . . . . . . . . . . Largest Inventory Capacity 27 | 5 15 15 25 25 25 15 15 15 15 15 15 15 15 15 15 15 15 15 15 15 15 15 15 15 27 27 27 Average Capacity 19 | 5 10 15 23 25 23 14 15 15 15 15 15 15 15 15 15 15 15 15 15 15 15 15 15 15 24 27 27 Most Carried 27 | 4 14 15 25 24 24 15 15 14 14 15 15 15 12 15 15 15 15 15 15 15 15 15 15 15 27 27 27 Average Carried 17 | 2 8 14 21 22 19 12 14 12 11 12 13 14 10 14 14 14 15 15 14 13 14 14 13 14 22 25 25 Final Capacity 27 | 5 15 15 25 25 15 15 15 15 15 15 15 15 15 15 15 15 15 15 15 15 15 15 15 15 27 27 27 Final Carried 27 | 3 14 14 22 21 15 13 14 12 12 15 15 13 12 15 15 15 15 15 13 15 14 15 13 15 27 27 17 Transmogrified Parts 329 | . . . 9 18 125 47 32 15 30 4 10 11 27 1 . . . . . . . . . . . . . Integrity Recovered 4745 | . . . 183 393 274 1083 788 447 517 134 183 153 588 2 . . . . . . . . . . . . . Class Distribution -------------------- 29% | Mutant 15% | Gunner 8% | Tank 7% | Scavenger-Executioner 7% | Scavenger-Gunner 4% | Scavenger-Mutant 4% | Executioner 4% | Alien-Gunner 3% | Scavenger-Tank Dominant Class ---------------- Mutant | -10/Materials Scavenger-Mutant | -10/Mines Mutant | -10/Subcaves Mutant | -9/Recycling Mutant | -9/Scraptown Gunner | -6/Factory Gunner | -6/Lower Caves Derelict-Gunner | -6/Lower Caves Gunner | -6/Data Miner Gunner | -5/Proximity Caves Tank | -5/Factory Tank | -5/Upper Caves Tank | -5/Upper Caves Commander-Tank | -5/Warlord Tank | -4/Proximity Caves Scavenger-Skirmisher | -4/Factory Skirmisher | -4/Upper Caves Skirmisher | -4/Upper Caves Skirmisher | -4/Zhirov Gunner | -3/Proximity Caves Hacker-Tank | -3/Research Executioner | -3/Quarantine Executioner | -2/Research Scavenger-Executioner | -2/Testing Scavenger-Executioner | -2/Section 7 Alien-Gunner | -1/Access Scavenger-Tank | -1/Command Resources | -11 -10 -10 -10 -9 -9 -6 -6 -6 -6 -5 -5 -5 -5 -5 -4 -4 -4 -4 -4 -3 -3 -3 -2 -2 -2 -1 -1 ----------- Run | Yrd Mat Min Sub Rec Scr Fac Low Low Dat Pro Fac Upp Upp War Pro Fac Upp Upp Zhi Pro Res Qua Res Tes Sec Acc Com Matter Collected 17977 | 306 305 81 414 521 10 1188 228 248 106 65 285 387 370 1263 400 32 322 58 62 387 532 645 . 968 2545 4836 1413 Remotely . | . . . . . . . . . . . . . . . . . . . . . . . . . . . . Salvage Created 41790 | 146 385 71 652 628 . 1619 807 363 292 . 313 513 549 898 1292 . 558 . . 369 375 896 165 1867 14101 12182 2749 Parts 1506 | 9 24 6 47 23 . 34 30 12 9 . 18 33 12 37 42 . 22 . . 18 11 39 10 93 445 441 91 Haulers Intercepted 7 | . 1 . . . . 1 . . . . 1 . . . . . . . . . . . . . 1 3 . Recyclers Shooed 11 | . . 1 . 1 . 2 . . . . . . . . . . . . . . 1 . . . 1 4 1 Parts Field Recycled . | . . . . . . . . . . . . . . . . . . . . . . . . . . . . Retrieved Matter . | . . . . . . . . . . . . . . . . . . . . . . . . . . . . Parts Self-Destructed 88 | . . . 12 . . . 9 15 . . . 31 7 . 2 . 7 . . 5 . . . . . . . Prevented 78 | . . . . . . . 21 . . . . . 2 . 31 . 15 . . 9 . . . . . . . Parts Restored . | . . . . . . . . . . . . . . . . . . . . . . . . . . . . Kills | -11 -10 -10 -10 -9 -9 -6 -6 -6 -6 -5 -5 -5 -5 -5 -4 -4 -4 -4 -4 -3 -3 -3 -2 -2 -2 -1 -1 ------- Run | Yrd Mat Min Sub Rec Scr Fac Low Low Dat Pro Fac Upp Upp War Pro Fac Upp Upp Zhi Pro Res Qua Res Tes Sec Acc Com Combat Hostiles Destroyed 605 | . 11 4 14 9 . 22 12 12 4 2 7 14 17 26 19 . 7 . . 9 7 12 4 16 169 161 47 Melee 19 | . . . . 1 . 6 2 3 . . . 1 1 . . . . . . . . . 1 . 1 1 2 Guns 103 | . 5 4 2 4 . . . 1 . . . . 2 4 1 . 4 . . . . . . 1 52 13 10 Cannons 187 | . 6 . 6 1 . 7 7 2 1 . 2 5 . . 1 . 1 . . 2 6 4 . 2 23 100 11 AOE 229 | . . . 6 . . 8 . 6 2 2 5 6 13 20 9 . 1 . . 7 . 5 3 12 73 30 21 Classes Destroyed 33 | 2 4 . 5 2 . 1 5 1 . . 2 1 . 3 . . . . . . . 2 . 1 2 1 1 Worker 23 | . . . . . . . . . . . 1 . . . . . . . . . . 1 . 3 6 11 1 Builder 22 | . . . . . . . . . . . 1 . . . . . . . . . 1 1 . 6 3 10 . Tunneler 3 | 2 . . . . . . . . . . . . . . . . . . . . . . . . . 1 . Hauler 7 | . 1 . . . . 1 . . . . 1 . . . . . . . . . . . . . 1 3 . Recycler 23 | 1 . . . 2 . 5 . . . . . . . . . . . . . . 1 . . 2 3 7 2 Carrier 3 | . . . . . . . . . . . . . . . . . . . . . . . . . . 3 . Minesweeper 1 | . . . . . . . . 1 . . . . . . . . . . . . . . . . . . . Mechanic 15 | . . . . . . . . . . . . . . . . . . . . . . 1 . . 6 7 1 Operator 14 | . 1 . . . . 1 . . . . . . . . . . . . . . . . . 2 7 2 1 Drone 5 | . . . . . . . 1 . . 2 . . . . 2 . . . . . . . . . . . . Watcher 6 | . . . . . . . . . . . . . . . . . . . . . . 1 1 1 2 1 . Swarmer 59 | . 5 4 . 1 . . . 2 . . 5 4 3 3 2 . . . . 8 2 . 4 1 9 5 1 Saboteur 15 | . . . . . . . . . . . . . . 1 . . . . . . . . . . 6 7 1 Grunt 212 | . 6 . . 3 . 13 2 9 . . . 4 9 12 12 . 4 . . . 2 4 . . 60 57 15 Brawler 32 | . . . . . . . 3 1 . . . . 1 2 . . . . . . . . . . 10 11 4 Duelist 20 | . . . . . . . 1 . . . . . . 1 1 . . . . . . . . . 8 6 3 Protector 19 | . . . . 1 . . . . . . . . . . . . . . . . . . . . 6 7 5 Researcher 6 | . . . . . . . . . . . . . . . . . . . . . . . . . 6 . . Sentry 32 | . . . 1 3 . 3 1 1 . . 1 . . . 2 . 1 . . 1 1 1 . . 10 5 1 Demolisher 3 | . . . . . . . . . . . . . . 2 . . . . . . . . . . . . 1 Specialist 7 | . . . . . . . . . . . . 3 . . . . . . . . . . . . 1 2 1 Hunter 39 | . . . . . . . 2 . . . . . . . . . 2 . . . 2 4 . 3 12 14 . Programmer 80 | . . . . 1 . 3 1 . . . 1 3 . 3 . . . . . . . 3 . 11 24 21 9 Heavy 1 | . . . . . . . . . . . . . . . . . . . . . . . . . . . 1 Behemoth 3 | . . . . . . . 1 . . . . . . . . . . . . . . . . . . 1 1 S7 Guard 2 | . . . . . . . . . . . . . . . . . . . . . . . . . 2 . . Enhanced Grunt 4 | . . . . . . . . . 4 . . . . . . . . . . . . . . . . . . Tracker 7 | . . . . . . . . . . . . . . . . . . . . . . . . . 5 2 . Combat Programmer 7 | . . . . . . . . . . . . . . . . . . . . . . . . . 5 2 . Investigator 1 | . . . . . . . . . . . . . . . . . . . . . . . . . 1 . . Striker 16 | . . . . . . . . . . . . . . . . . . . . . . . . . 4 9 3 Executioner 22 | . . . . . . . . . . . . . . 2 . . . . . . . . . . 7 12 1 Fortress 1 | . . . . . . . . . . . . . . . . . . . . . . . . 1 . . . Artisan 1 | . . . 1 . . . . . . . . . . . . . . . . . . . . . . . . Cobbler 1 | . . . 1 . . . . . . . . . . . . . . . . . . . . . . . . Subdweller 13 | . . . 13 . . . . . . . . . . . . . . . . . . . . . . . . Zionite 1 | . . . 1 . . . . . . . . . . . . . . . . . . . . . . . . Assembled 3 | . . . . . . 3 . . . . . . . . . . . . . . . . . . . . . Thug 4 | . . . . . . . . . . . . . 4 . . . . . . . . . . . . . . Butcher 1 | . . . . . . . . . . . . . . 1 . . . . . . . . . . . . . Best Kill Streak 26 | 1 3 2 7 4 . 6 6 6 4 2 6 4 5 14 5 . 4 . . 4 4 4 4 7 26 25 26 Combat Bots Only 25 | . 3 2 7 3 . 6 6 6 4 2 5 4 5 14 5 . 4 . . 4 3 4 3 3 25 18 18 Max Kills in Single Turn 7 | 1 1 2 3 2 . 4 1 2 1 2 4 2 3 3 2 . 2 . . 2 1 1 3 3 5 5 7 Gunslinging . | . . . . . . . . . . . . . . . . . . . . . . . . . . . . Exploded 7 | . . . 3 . . 2 . 2 1 2 4 2 3 3 1 . 1 . . 2 . 1 2 2 3 4 7 Melee 1 | . . . . 1 . 1 1 1 . . . 1 1 . . . . . . . . . 1 . 1 1 1 Uniques/NPCs Destroyed . | . . . . . . . . . . . . . . . . . . . . . . . . . . . . Combat | -11 -10 -10 -10 -9 -9 -6 -6 -6 -6 -5 -5 -5 -5 -5 -4 -4 -4 -4 -4 -3 -3 -3 -2 -2 -2 -1 -1 -------- Run | Yrd Mat Min Sub Rec Scr Fac Low Low Dat Pro Fac Upp Upp War Pro Fac Upp Upp Zhi Pro Res Qua Res Tes Sec Acc Com Hostile Shots Fired 3253 | . 59 20 154 84 . 228 71 143 31 25 10 53 42 43 73 . 22 . . 19 148 107 23 121 684 732 361 Missed 1068 | . 17 6 44 22 . 71 23 38 10 10 1 13 16 16 38 . 5 . . 13 108 69 13 59 204 196 76 Deflected 2 | . . . . . . . . . . . . . . . . . . . . . . . . . 2 . . Hits 2185 | . 42 14 110 62 . 157 48 105 21 15 9 40 26 27 35 . 17 . . 6 40 38 10 62 480 536 285 Melee 44 | . . . . . . 2 2 . . . . . . . . . . . . . . . . . 5 25 10 Projectile 2141 | . 42 14 110 62 . 155 46 105 21 15 9 40 26 27 35 . 17 . . 6 40 38 10 62 475 511 275 AOE 5 | . . . . . . . . . . . . . . . . . . . . . . . . . 1 3 1 Critical Strikes 98 | . 1 . 1 1 . 4 1 4 . . 1 . 2 1 . . 1 . . . 2 2 . 8 17 34 18 Actively Blocked 1 | . . . . . . . . . . . 1 . . . . . . . . . . . . . . . . Part Disruptions 8 | . . . . . . . . . 1 . . 1 . . . . . . . . . . . 2 4 . . Damage Taken 39354 | . 527 122 1580 742 . 2460 1100 2033 1038 258 334 841 359 600 696 . 469 . 1447 119 383 376 171 1083 6380 10573 5663 Core 5095 | . 172 7 462 251 . 271 122 339 111 . 18 72 31 90 71 . 59 . 67 24 35 50 . 300 973 1044 526 Absorbed by Shields 9068 | . . . . . . . . . . . . . 158 181 50 . . . . 11 404 397 179 1053 4168 1371 1096 Reduced by Siege Mode 149 | . . . . . . . . . . . . . . . . . . . . . . . . . . 75 74 Redirected to Core 755 | . . . . . . . . . . . . . . . . . . . . . . . . 241 514 . . Ignored by Resistances 5417 | . . . . . . . . 200 . . . . . . . . . . . . 78 . 59 205 2446 1623 806 Regen/Repaired (Parts) 181 | . . . . . . . . . . . 145 . . 36 . . . . . . . . . . . . . Core Remaining (%) 58 | 100 . . . . 14 . . . . 45 . . . . 77 . . . . 89 . 79 . . 41 . 25 Volleys Fired 1128 | 6 52 6 48 14 . 44 37 20 16 17 13 32 28 50 34 5 15 3 8 9 27 44 5 26 253 232 84 Largest 5 | 2 2 2 3 2 . 2 4 3 3 3 4 4 4 3 4 3 4 1 1 4 4 5 1 1 4 5 5 Hottest 520 | 40 100 79 159 124 . 180 342 243 180 228 215 275 284 109 159 109 197 38 38 172 195 300 300 300 300 520 438 Shots Fired 1933 | 12 84 12 73 27 . 68 80 27 19 29 34 59 42 82 51 9 48 3 8 15 73 66 6 28 302 471 205 Gun 742 | 12 27 12 21 20 . 3 . 3 . . 8 . 25 63 19 9 30 3 8 4 . 12 6 21 251 102 83 Cannon 1037 | . 45 . 45 7 . 59 80 15 8 28 26 40 2 . 6 . 14 . . 4 73 54 . 7 51 369 104 Launcher 121 | . . . 3 . . 6 . 9 10 1 . 3 15 19 26 . 4 . . 7 . . . . . . 18 Special 33 | . 12 . 4 . . . . . 1 . . 16 . . . . . . . . . . . . . . . Kinetic 826 | 12 36 6 17 13 . 9 5 . . 6 22 21 2 42 19 9 36 3 8 6 54 29 . 2 157 216 96 Thermal 764 | . 48 6 56 14 . 22 30 11 8 22 12 19 14 . . . . . . . . 5 6 19 145 255 72 Explosive 74 | . . . . . . 6 . 9 4 1 . 3 14 19 . . . . . . . . . . . . 18 Electromagnetic 222 | . . . . . . 31 45 7 6 . . . 12 21 26 . 12 . . 7 5 31 . . . . 19 Entropic 30 | . . . . . . . . . . . . . . . 6 . . . . 2 14 1 . 7 . . . Robot Hit Streak 58 | 2 6 2 18 10 . 15 10 10 6 . 3 6 7 9 11 2 12 . . 9 14 10 5 10 19 34 58 Robot Miss Streak 15 | 1 4 3 2 1 . 4 6 3 2 1 6 7 3 3 3 2 2 . . . 3 4 1 4 9 15 4 Penetration Max 3 | . . . . . . . . . . . . 1 . 1 . . . . . . 1 . . . 3 2 2 Secondary Targets 4 | . . 1 . . . . . . . . . . . 1 . . . . . . . . . . 1 . 1 Max Gunslinging Chain 1 | . . 1 . . . . . . . . . . . 1 . . . . . . . . . . 1 . 1 Shots Hit Robots 1225 | 8 43 6 56 36 . 56 47 26 12 . 10 22 24 39 19 2 26 . . 6 33 43 3 32 184 350 142 Core Hits 1606 | 4 19 4 26 13 . 43 17 21 18 . 11 15 40 76 29 . 16 . . 16 11 26 10 57 603 401 130 Critical Kills 149 | . . . . . . 1 . . . . 1 2 . 1 . . . . . . . . . 1 64 76 3 Critical Parts Destroyed 155 | . . . . 3 . 1 . . . . 1 2 . 2 . . . . . . . . . 1 75 70 . Critical Strikes 351 | . . 1 1 3 . 5 1 2 . . 2 5 2 5 . . 1 . . 1 6 3 1 6 149 153 4 Burn 3 | . . 1 1 . . . . . . . . . 1 . . . . . . . . . . . . . . Meltdown 12 | . . . . . . . . . . . . . . . . . . . . . . . . . . 10 2 Destroy 300 | . . . . . . . . . . . 2 4 . 3 . . . . . . . . . 2 149 139 1 Blast 13 | . . . . . . . . . . . . 1 . . . . . . . 1 4 3 . . . 4 . Corrupt 6 | . . . . . . 1 1 . . . . . . 2 . . 1 . . . . . . . . . 1 Smash 5 | . . . . 3 . 2 . . . . . . . . . . . . . . . . . . . . . Sever 2 | . . . . . . 2 . . . . . . . . . . . . . . . . . . . . . Impale 7 | . . . . . . . . 2 . . . . 1 . . . . . . . . . 1 3 . . . Sunder 3 | . . . . . . . . . . . . . . . . . . . . . 2 . . 1 . . . Melee Attacks 226 | . . . 13 29 . 20 4 18 . . . 3 2 . . . . . . . 7 10 10 51 35 13 11 Kinetic 2 | . . . . . . . . . . . . . . . . . . . . . . . . 2 . . . Impact 53 | . . . 13 29 . 10 . 1 . . . . . . . . . . . . . . . . . . . Slashing 65 | . . . . . . 10 4 2 . . . 3 . . . . . . . . . . . 14 31 1 . Piercing 106 | . . . . . . . . 15 . . . . 2 . . . . . . . 7 10 10 35 4 12 11 Sneak Attacks 22 | . . . . 1 . 2 1 1 . . . . . . . . . . . . . 4 . 9 1 3 . Combat Hostiles 1 | . . . . . . . 1 . . . . . . . . . . . . . . . . . . . . Follow-up Attacks 2 | . . . . 2 . . . . . . . . . . . . . . . . . . . . . . . Damage Inflicted 109065 | 104 661 135 2103 1254 . 4120 1937 2086 1136 146 724 1089 2692 4995 2460 53 940 . 28 786 1319 2548 549 4280 31320 29874 11726 Guns 11697 | 104 193 130 244 308 . 54 . 38 . . 59 . 420 1210 285 53 545 . 28 83 . 120 4 108 2865 2455 2391 Cannons 30260 | . 460 . 915 133 . 1253 1758 188 200 . 314 539 63 . 290 . 274 . . 149 1319 1364 . 422 2668 15444 2507 Explosions 61964 | . . . 935 . . 2002 80 1454 936 146 351 477 2123 3785 1885 . 121 . . 554 . 785 460 2537 25430 11391 6512 Melee 4898 | . . . . 813 . 797 99 406 . . . 73 86 . . . . . . . . 279 85 1213 285 446 316 Ramming 246 | . 8 5 9 . . 14 . . . . . . . . . . . . . . . . . . 72 138 . Kinetic 16297 | 104 319 59 1078 182 . 265 . . . . 219 431 63 771 285 53 627 . 28 165 726 754 . 71 2659 4843 2595 Thermal 62501 | . 334 71 1016 259 . 605 726 209 258 . 384 221 204 . 175 . . . . 80 . 588 464 2615 28086 24447 1759 Explosive 16563 | . . . . . . 1104 . 1454 578 146 121 364 2064 3785 . . . . . . . 217 . . 218 . 6512 Electromagnetic 6543 | . . . . . . 525 1112 17 300 . . . 275 439 1710 . 313 . . 474 124 710 . . . . 544 Impact 1296 | . . . . 813 . 483 . . . . . . . . . . . . . . . . . . . . . Slashing 1038 | . . . . . . 314 99 36 . . . 73 . . . . . . . . . . . 231 285 . . Piercing 2523 | . . . . . . . . 370 . . . . 86 . . . . . . . . 279 85 941 . 446 316 Entropic 2058 | . . . . . . 810 . . . . . . . . 290 . . . . 67 469 . . 422 . . . Highest Corruption 24 | . . . 4 1 . 3 10 24 1 1 1 6 2 22 22 . 1 10 10 10 16 14 1 10 5 12 . Average Corruption 6 | . . . 4 1 . 1 8 12 1 1 1 2 2 21 6 . 1 10 10 10 15 12 1 2 4 12 . Corruption Purged 5 | . . . . . . . . . . . . . . . . . . . . . 5 . . . . . . Corruption Blocked . | . . . . . . . . . . . . . . . . . . . . . . . . . . . . Effects 353 | . . . 1 6 . 16 48 15 . 3 6 4 3 9 19 . . 4 10 14 21 40 2 24 25 83 . Message Errors 83 | . . . . 3 . 4 15 3 . 1 . . 1 . 2 . . . 3 3 5 8 . 10 5 20 . Matter Fused 74 | . . . . 1 . 1 11 3 . . 1 3 1 1 4 . . 2 1 5 4 14 . 4 1 17 . Heat Flow Errors 53 | . . . . 1 . 2 6 2 . 1 1 1 . 3 5 . . . 1 2 2 4 1 4 4 13 . Energy Discharges 35 | . . . 1 . . . 3 2 . 1 1 . 1 2 . . . 1 1 1 4 4 . 3 2 8 . Parts Rejected 3 | . . . . . . . 1 1 . . . . . . . . . . . . . . . . . 1 . Parts Fused 5 | . . . . . . . 1 1 . . 1 . . . . . . . . 1 1 . . . . . . Data Loss (minor) 41 | . . . . 1 . 3 4 1 . . 1 . . 1 4 . . 1 4 2 1 3 1 . 4 10 . Data Loss (major) 17 | . . . . . . 1 2 1 . . . . . . 1 . . . . . . 3 . 1 4 4 . Misfires 19 | . . . . . . 2 2 . . . . . . . 1 . . . . . 3 1 . 2 3 5 . Alerts 8 | . . . . . . 2 1 1 . . 1 . . . . . . . . . . 1 . . 1 1 . Misdirections 1 | . . . . . . . . . . . . . . 1 . . . . . . . . . . . . . Weapon Failures 14 | . . . . . . 1 2 . . . . . . 1 2 . . . . . 1 2 . . 1 4 . Overload Shots 3 | . . . . . . . . . . . . . . . . . . . . . . . . . 3 . . Overflow Damage 4900 | . . . 48 251 . 264 7 125 . 46 16 29 32 47 64 . . . . 35 123 163 3 370 1004 1930 343 Projectiles 1891 | . . . 4 . . 24 7 . . . . . . . . . . . . . 123 93 . 164 499 960 17 Explosions 2315 | . . . 44 . . 150 . 49 . 46 16 29 19 47 64 . . . . 35 . 14 3 51 494 931 323 Melee 694 | . . . . 251 . 90 . 76 . . . . 13 . . . . . . . . 56 . 155 11 39 3 Knockbacks 104 | . 5 . . . . 1 . . . . . 6 1 . . . . . . . 9 7 . . 29 45 1 Impact 2 | . . . . . . 1 . . . . . . . . . . . . . . . . . . 1 . . Kinetic 86 | . 3 . . . . . . . . . . 6 1 . . . . . . . 7 6 . . 18 44 1 Secondary 16 | . 2 . . . . . . . . . . . . . . . . . . . 2 1 . . 10 1 . Self-Inflicted Damage 3342 | . . . 133 . . 273 35 54 66 46 13 57 22 . 37 . . . . . . 59 43 676 1323 138 367 Shots 137 | . . . 3 . . 4 1 1 1 1 1 1 2 . 4 . . . . . . 1 4 34 72 4 3 Rammed 18 | . 3 1 1 . . . . . . . . . . . . . . . . . . . . . . 13 . Targets Rammed 22 | . 3 1 1 . . 1 . . . . . . . . . . . . . . . . . . 2 14 . Kicked 3 | . . . . . . 1 . . . . . . . . . . . . . . . . . . 2 . . Crushed 1 | . . . . . . . . . . . . . . . . . . . . . . . . . . 1 . Highest Temperature 573 | . 252 84 69 261 183 426 437 306 126 573 289 476 356 193 173 . 17 . 83 209 521 188 457 356 344 502 403 Average Temperature 107 | . 89 36 20 113 64 92 136 144 47 201 117 159 115 93 54 . 7 . 51 80 118 83 189 124 119 119 118 Received Heat Transfer 4034 | . 132 9 423 324 . 480 165 621 . 39 18 63 68 52 173 . 42 . . . 57 10 4 13 466 570 305 Effects 26 | . 3 . . 2 . 3 1 . . 5 . 2 . . . . . . . . 4 . 1 . 1 3 1 Shutdowns 7 | . . . . . . 1 1 . . 2 . 1 . . . . . . . . 1 . . . . 1 . Energy Bleed 8 | . 1 . . . . 2 . . . 1 . 1 . . . . . . . . 1 . . . 1 . 1 Interference 7 | . 2 . . 2 . . . . . . . . . . . . . . . . . . 1 . . 2 . Matter Decay 1 | . . . . . . . . . . . . . . . . . . . . . 1 . . . . . . Damage (minor) 3 | . . . . . . . . . . 2 . . . . . . . . . . 1 . . . . . . Siege Activations 4 | . . . . . . . . . . . . . . . . . . . . . . . . . . 1 3 Total Turns 206 | . . . . . . . . . . . . . . . . . . . . . . . . . . 128 78 Longest Duration 128 | . . . . . . . . . . . . . . . . . . . . . . . . . . 128 35 Martial Activations . | . . . . . . . . . . . . . . . . . . . . . . . . . . . . Shielding Activations 1 | . . . . . . . . . . . . . . . . . . . . . . . . . 1 . . Total Turns 14 | . . . . . . . . . . . . . . . . . . . . . . . . . 14 . . Longest Duration 14 | . . . . . . . . . . . . . . . . . . . . . . . . . 14 . . Robots Disrupted . | . . . . . . . . . . . . . . . . . . . . . . . . . . . . Combat Hostiles . | . . . . . . . . . . . . . . . . . . . . . . . . . . . . Robots Corrupted 26 | . . . . 4 . 2 3 . 1 . . . 1 1 8 . 1 . . . 1 3 . . . . 1 Combat Hostiles 24 | . . . . 3 . 1 3 . 1 . . . 1 1 8 . 1 . . . 1 3 . . . . 1 Parts Fried 54 | . . . . 4 . 2 10 . 4 . . . 1 5 10 . 4 . . 4 1 4 . . 1 . 4 Impact Corruptions 14 | . . . . 8 . 4 . . . . . . . . . . . . . . . 1 . . 1 . . Robots Melted 43 | . . . . . . 2 . . . . . . . . . . . . . . . . . . 20 19 2 Combat Hostiles 37 | . . . . . . . . . . . . . . . . . . . . . . . . . 20 15 2 Parts Melted 170 | . 1 . 1 . . 3 1 . . . . . . . . . . . . . . 3 2 17 108 31 3 Heat Transferred 61233 | . 703 259 1702 444 . 770 387 222 50 . 100 100 472 . 200 . . . . 50 . 785 562 3340 30838 18903 1346 Parts Sabotaged 18 | . . . . . . . . . . . . . . . . . . . . . . . . . 4 11 3 Parts Stolen . | . . . . . . . . . . . . . . . . . . . . . . . . . . . . Parts Stripped 18 | . . . . . . . . . . . . . . . . . . . . . . . . 18 . . . Power Chain Reactions 10 | . . . . . . 1 1 . 1 . 2 1 . . 3 . . . . 1 . . . . . . . Alert | -11 -10 -10 -10 -9 -9 -6 -6 -6 -6 -5 -5 -5 -5 -5 -4 -4 -4 -4 -4 -3 -3 -3 -2 -2 -2 -1 -1 ------- Run | Yrd Mat Min Sub Rec Scr Fac Low Low Dat Pro Fac Upp Upp War Pro Fac Upp Upp Zhi Pro Res Qua Res Tes Sec Acc Com Maximum Alert Level 5 | . . 1 . . . 1 . . . . 1 . . . . 1 . . . . . 1 . 2 5 5 5 Low Security (%) 50 | 100 100 95 . 100 . 64 . . . . 91 . . . . 53 . . . . 100 95 100 81 . . . Level 1 6 | . . 4 . . . 35 . . . . 8 . . . . 46 . . . . . 4 . . 3 . . Level 2 2 | . . . . . . . . . . . . . . . . . . . . . . . . 18 3 . . Level 3 1 | . . . . . . . . . . . . . . . . . . . . . . . . . 11 . . Level 4 1 | . . . . . . . . . . . . . . . . . . . . . . . . . 8 . . Level 5 7 | . . . . . . . . . . . . . . . . . . . . . . . . . 2 28 26 High Security 30 | . . . . . . . . . . . . . . . . . . . . . . . . . 71 71 73 Max Security . | . . . . . . . . . . . . . . . . . . . . . . . . . . . . Sterilizations 2 | . . . . . . . . . . . . . . . . . . . . . . . . . 1 1 . Peak Influence 7635 | 5 85 288 . 46 . 310 . . . . 327 . . . . 246 . . . . 106 210 117 568 4607 7635 6863 Initial 4886 | . . 26 . . . . . . . . 12 . . . . 235 . . . . 47 14 117 15 303 2764 4886 Average 2017 | 1 15 51 . 8 . 142 . . . . 76 . . . . 193 . . . . 43 81 55 163 2913 5776 5594 Influence Increases 20340 | 15 354 557 20 221 . 798 300 279 . 70 476 355 455 602 445 185 150 . . 230 320 513 138 1033 4952 5655 2217 Destroy 0b10 Robot/C 11740 | . 220 80 20 160 . 380 240 260 . . 140 280 340 520 340 . 140 . . 180 140 240 80 320 3420 3220 1020 Destroy 0b10 Robot/NC 735 | 15 10 . . 30 . 40 . 5 . 10 15 . . 5 10 . . . . . 10 20 5 75 175 260 50 Destroy Leader 1706 | . 62 10 . . . 92 30 10 . . 32 30 40 . 20 . 10 . . 20 20 22 12 62 546 518 170 Allied During Kill 373 | . . . . . . . . 4 . . . . . 77 . . . . . . . . . . 15 98 179 Successful Hack 232 | . 5 . . 22 . . . . . . 44 . . . . 14 . . . . 19 67 8 41 12 . . Disable Machine 915 | . 15 15 . . . 30 . . . . 165 . . . . 15 . . . . 30 105 . 105 270 120 45 Anti-Garrison Action 150 | . . . . . . . . . . . . . . . . . . . . . . . . . . 150 . Destroy Structure 2139 | . 12 . . 9 . 61 . . . . 80 . . . . 6 . . . . 56 44 18 132 364 934 423 Advance Influence 150 | . . . . . . . . . . . . . . . . 150 . . . . . . . . . . . Partial Spotted 15 | . 15 . . . . . . . . . . . . . . . . . . . . . . . . . . Lose Combat Pursuer 1185 | . 15 . . . . 75 30 . . 60 . 45 75 . 75 . . . . 30 45 15 15 . 150 225 330 Miscellaneous 1000 | . . 452 . . . 120 . . . . . . . . . . . . . . . . . 298 . 130 . Influence Decreases 13477 | 15 285 353 293 219 2 539 511 314 13 50 185 428 352 463 789 191 266 14 . 160 364 329 321 520 885 2627 2989 Entered New Map 6372 | . . 43 143 . 2 . 97 10 13 . 8 116 46 341 480 51 49 4 . . 23 12 93 12 237 1843 2749 Time Decay 5858 | 15 275 310 150 202 . 496 398 214 . 50 167 262 286 122 309 140 217 10 . 150 235 317 113 508 368 434 110 Lost Part 726 | . 10 . . 17 . 43 16 70 . . 10 50 20 . . . . . . 10 10 . . . 130 250 90 Lost Ally 160 | . . . . . . . . 20 . . . . . . . . . . . . . . . . . 100 40 Purge Threat 361 | . . . . . . . . . . . . . . . . . . . . . 96 . 115 . 150 . . Squads Dispatched 144 | . 2 . . . . 7 . . . . 2 . . . . . . . . . 3 4 1 6 48 48 23 Investigation 5 | . . . . . . . . . . . 1 . . . . . . . . . 2 2 . . . . . Extermination 15 | . . . . . . 4 . . . . 1 . . . . . . . . . 1 2 . 4 2 1 . Reinforcement 20 | . 2 . . . . 3 . . . . . . . . . . . . . . . . 1 2 7 4 1 Assault 98 | . . . . . . . . . . . . . . . . . . . . . . . . . 34 42 22 Garrison 3 | . . . . . . . . . . . . . . . . . . . . . . . . . 3 . . Intercept 3 | . . . . . . . . . . . . . . . . . . . . . . . . . 2 1 . Searches Triggered . | . . . . . . . . . . . . . . . . . . . . . . . . . . . . Construction Impeded 2 | . . . . . . . . . . . . . . . . . . . . . . . . 1 1 . . Haulers Reinforced 5 | . . . . . . 1 . . . . . . . . . . . . . . . . . . 2 2 . Active Scanning Responses . | . . . . . . . . . . . . . . . . . . . . . . . . . . . . Cargo Convoy Interrupts 1 | . . . . . . 1 . . . . . . . . . . . . . . . . . . . . . Stealth | -11 -10 -10 -10 -9 -9 -6 -6 -6 -6 -5 -5 -5 -5 -5 -4 -4 -4 -4 -4 -3 -3 -3 -2 -2 -2 -1 -1 --------- Run | Yrd Mat Min Sub Rec Scr Fac Low Low Dat Pro Fac Upp Upp War Pro Fac Upp Upp Zhi Pro Res Qua Res Tes Sec Acc Com Distress Signals 9 | . 1 . . . . . . . . . . . . . . . . . . . . . 1 . 3 4 . Communications Jammed 252 | . . . . . . . . . . . . . . . . . . . . . 2 20 . 21 49 148 12 Distress Signals 221 | . . . . . . . . . . . . . . . . . . . . . 1 3 . 21 48 138 10 Times Spotted 944 | . 22 7 23 8 . 32 12 19 4 9 7 17 22 56 21 1 5 . . 9 17 19 3 23 277 200 131 Peak Tracking Total 35 | . 3 3 7 3 . 5 7 13 4 9 5 5 5 19 6 1 1 . . 4 8 2 5 4 22 11 35 Tactical Retreats 54 | . 1 . . . . 5 2 . . 2 . 2 4 . 2 . . . . 1 3 1 1 . 9 12 9 Traps | -11 -10 -10 -10 -9 -9 -6 -6 -6 -6 -5 -5 -5 -5 -5 -4 -4 -4 -4 -4 -3 -3 -3 -2 -2 -2 -1 -1 ------- Run | Yrd Mat Min Sub Rec Scr Fac Low Low Dat Pro Fac Upp Upp War Pro Fac Upp Upp Zhi Pro Res Qua Res Tes Sec Acc Com Traps Triggered 17 | . 3 . 1 . . 2 . 1 . . 1 . . . . 1 . . . . 2 1 1 1 . 2 1 Indirectly . | . . . . . . . . . . . . . . . . . . . . . . . . . . . . Trap Hack Attempts . | . . . . . . . . . . . . . . . . . . . . . . . . . . . . Triggered . | . . . . . . . . . . . . . . . . . . . . . . . . . . . . Disarmed . | . . . . . . . . . . . . . . . . . . . . . . . . . . . . Reprogrammed . | . . . . . . . . . . . . . . . . . . . . . . . . . . . . Reused . | . . . . . . . . . . . . . . . . . . . . . . . . . . . . Traps Extracted . | . . . . . . . . . . . . . . . . . . . . . . . . . . . . Installed 3 | . . . . . . 1 . 2 . . . . . . . . . . . . . . . . . . . Triggered . | . . . . . . . . . . . . . . . . . . . . . . . . . . . . Most Traps Carried 3 | . . . . . 3 3 2 2 . . . . . . . . . . . . . . . . . . . Machines | -11 -10 -10 -10 -9 -9 -6 -6 -6 -6 -5 -5 -5 -5 -5 -4 -4 -4 -4 -4 -3 -3 -3 -2 -2 -2 -1 -1 ---------- Run | Yrd Mat Min Sub Rec Scr Fac Low Low Dat Pro Fac Upp Upp War Pro Fac Upp Upp Zhi Pro Res Qua Res Tes Sec Acc Com Machines Disabled 83 | . 1 1 1 . . 2 . . 1 . 11 1 . 2 1 1 . . 3 . 2 7 . 9 24 12 4 Max in Single Turn 3 | . 1 1 1 . . 1 . . 1 . 3 1 . 1 1 1 . . 1 . 1 1 . 1 3 2 1 Garrison Access 5 | . . . . . . . . . . . . . . . . . . . . . . . . 1 1 3 . Energy Cycler 1 | . . . . . . . . . . . . . . . . . . . . . . . . . . 1 . Machines Repaired . | . . . . . . . . . . . . . . . . . . . . . . . . . . . . Machines Dismantled . | . . . . . . . . . . . . . . . . . . . . . . . . . . . . Machines Sabotaged . | . . . . . . . . . . . . . . . . . . . . . . . . . . . . Overloaded Fab Kills . | . . . . . . . . . . . . . . . . . . . . . . . . . . . . Hacking | -11 -10 -10 -10 -9 -9 -6 -6 -6 -6 -5 -5 -5 -5 -5 -4 -4 -4 -4 -4 -3 -3 -3 -2 -2 -2 -1 -1 --------- Run | Yrd Mat Min Sub Rec Scr Fac Low Low Dat Pro Fac Upp Upp War Pro Fac Upp Upp Zhi Pro Res Qua Res Tes Sec Acc Com Machines Accessed 64 | . 5 . 1 4 5 4 2 . 4 . 6 . . 1 1 2 . . 4 . 4 7 1 9 2 1 1 Terminals 36 | . 4 . . 4 . 4 . . . . 2 . . . 1 2 . . . . 3 5 1 8 1 . 1 Fabricators 2 | . . . . . . . . . . . 2 . . . . . . . . . . . . . . . . Repair Stations 3 | . . . . . . . . . . . 2 . . . . . . . . . . 1 . . . . . Recycling Units 1 | . 1 . . . . . . . . . . . . . . . . . . . . . . . . . . Scanalyzers 1 | . . . . . . . . . . . . . . . . . . . . . . . . . 1 . . Garrison Access 4 | . . . . . . . . . . . . . . . . . . . . . 1 1 . 1 . 1 . Total Hacks 170 | . 8 . 1 8 16 6 2 . 27 . 11 . . 1 4 4 . . 17 . 14 25 4 13 7 1 1 Successful 105 | . 5 . 1 5 16 . 2 . 27 . 7 . . 1 4 1 . . 17 . 5 4 3 3 3 1 . Failed 65 | . 3 . . 3 . 6 . . . . 4 . . . . 3 . . . . 9 21 1 10 4 . 1 Catastrophic 22 | . 1 . . . . 3 . . . . 2 . . . . 1 . . . . 1 7 . 6 . . 1 Database Lockouts . | . . . . . . . . . . . . . . . . . . . . . . . . . . . . Manual 42 | . 3 . . . . . . . . . 5 1 . 2 . 2 . . . . 7 14 4 3 . . 1 Terminals 80 | . 7 . . 8 . 6 . . . . 4 . . . 4 4 . . . . 11 16 4 12 3 . 1 Fabricators 3 | . . . . . . . . . . . 3 . . . . . . . . . . . . . . . . Repair Stations 12 | . . . . . . . . . . . 4 . . . . . . . . . . 8 . . . . . Recycling Units 1 | . 1 . . . . . . . . . . . . . . . . . . . . . . . . . . Scanalyzers 4 | . . . . . . . . . . . . . . . . . . . . . . . . . 4 . . Garrison Access 6 | . . . . . . . . . . . . . . . . . . . . . 3 1 . 1 . 1 . Terminal Hacks 86 | . 3 . 1 5 16 . 2 . 27 . . . . 1 4 1 . . 17 . 3 1 2 2 1 . . Record 36 | . . . . . 16 . . . 11 . . . . . 4 . . . 5 . . . . . . . . Part Schematic 14 | . . . . 2 . . . . 8 . . . . . . . . . 4 . . . . . . . . Robot Schematic 5 | . . . . . . . . . 5 . . . . . . . . . . . . . . . . . . Robot Analysis 4 | . . . . . . . . . . . . . . . . . . . 4 . . . . . . . . Prototype ID Bank 12 | . 3 . . 1 . . . . 3 . . . . . . . . . 4 . . 1 . . . . . Open Door 4 | . . . . . . . 2 . . . . . . 1 . . . . . . 1 . . . . . . Branch Access Points 2 | . . . . . . . . . . . . . . . . . . . . . 1 . 1 . . . . Unreport Threat 3 | . . . . . . . . . . . . . . . . . . . . . 1 . 1 . 1 . . Hauler Manifests 2 | . . . . . . . . . . . . . . . . 1 . . . . . . . 1 . . . Registered Components 1 | . . . . . . . . . . . . . . . . . . . . . . . . 1 . . . Registered Prototypes 1 | . . . . 1 . . . . . . . . . . . . . . . . . . . . . . . Zone Layout 1 | . . . . 1 . . . . . . . . . . . . . . . . . . . . . . . Proto ID Catalog 1 | . . . 1 . . . . . . . . . . . . . . . . . . . . . . . . Fabricator Hacks 1 | . . . . . . . . . . . 1 . . . . . . . . . . . . . . . . Network Status 1 | . . . . . . . . . . . 1 . . . . . . . . . . . . . . . . Repair Station Hacks 4 | . . . . . . . . . . . 3 . . . . . . . . . . 1 . . . . . Scan Component 2 | . . . . . . . . . . . 1 . . . . . . . . . . 1 . . . . . Repair 1 | . . . . . . . . . . . 1 . . . . . . . . . . . . . . . . Refit 1 | . . . . . . . . . . . 1 . . . . . . . . . . . . . . . . Recycling Unit Hacks 1 | . 1 . . . . . . . . . . . . . . . . . . . . . . . . . . Retrieve Components 1 | . 1 . . . . . . . . . . . . . . . . . . . . . . . . . . Scanalyzer 2 | . . . . . . . . . . . . . . . . . . . . . . . . . 2 . . Retrieve Study 2 | . . . . . . . . . . . . . . . . . . . . . . . . . 2 . . Garrison Access Hacks 2 | . . . . . . . . . . . . . . . . . . . . . . . . 1 . 1 . Seal Access 2 | . . . . . . . . . . . . . . . . . . . . . . . . 1 . 1 . Unauthorized Hacks 9 | . 1 . . . . . . . . . 3 . . . . . . . . . 2 2 1 . . . . Terminals 7 | . 1 . . . . . . . . . 1 . . . . . . . . . 2 2 1 . . . . Botnet 2 | . . . . . . . . . . . 1 . . . . . . . . . . . 1 . . . . Skim 5 | . 1 . . . . . . . . . . . . . . . . . . . 2 2 . . . . . Fabricators 1 | . . . . . . . . . . . 1 . . . . . . . . . . . . . . . . Haulers 1 | . . . . . . . . . . . 1 . . . . . . . . . . . . . . . . Repair Stations 1 | . . . . . . . . . . . 1 . . . . . . . . . . . . . . . . Patch 1 | . . . . . . . . . . . 1 . . . . . . . . . . . . . . . . Recycling Units . | . . . . . . . . . . . . . . . . . . . . . . . . . . . . Scanalyzers . | . . . . . . . . . . . . . . . . . . . . . . . . . . . . Garrison Access . | . . . . . . . . . . . . . . . . . . . . . . . . . . . . Data Cores Recovered 3 | . 1 . . . . . . . . . . . . . . . . . . . . . . 1 . 1 . Used . | . . . . . . . . . . . . . . . . . . . . . . . . . . . . Hacking Detections 37 | . 3 . . 1 . 4 . . . . 5 . . . . 2 . . . . 3 7 1 8 2 . 1 Full Trace Events 4 | . . . . 1 . . . . . . . . . . . . . . . . 1 2 . . . . . Feedback Events . | . . . . . . . . . . . . . . . . . . . . . . . . . . . . Feedback Blocked . | . . . . . . . . . . . . . . . . . . . . . . . . . . . . Robot Schematics Acquired 6 | . . . . . . . . . 5 . . . . . . . . . . . . . . . 1 . . Robots Built . | . . . . . . . . . . . . . . . . . . . . . . . . . . . . Authchips . | . . . . . . . . . . . . . . . . . . . . . . . . . . . . Time . | . . . . . . . . . . . . . . . . . . . . . . . . . . . . Total Robot Build Rating . | . . . . . . . . . . . . . . . . . . . . . . . . . . . . Part Schematics Acquired 18 | . . . . 2 . . . . 8 . . . . . . . . . 4 . . . . . 4 . . Parts Built . | . . . . . . . . . . . . . . . . . . . . . . . . . . . . Authchips . | . . . . . . . . . . . . . . . . . . . . . . . . . . . . Time . | . . . . . . . . . . . . . . . . . . . . . . . . . . . . Total Part Build Rating . | . . . . . . . . . . . . . . . . . . . . . . . . . . . . Part Studies Acquired 2 | . . . . . . . . . . . . . . . . . . . . . . . . . 2 . . Parts Repaired 1 | . . . . . . . . . . . 1 . . . . . . . . . . . . . . . . Time 25 | . . . . . . . . . . . 25 . . . . . . . . . . . . . . . . Parts Recycled . | . . . . . . . . . . . . . . . . . . . . . . . . . . . . Recycled Matter . | . . . . . . . . . . . . . . . . . . . . . . . . . . . . Retrieved Matter . | . . . . . . . . . . . . . . . . . . . . . . . . . . . . Retrieved Components 1 | . 1 . . . . . . . . . . . . . . . . . . . . . . . . . . Parts Scanalyzed . | . . . . . . . . . . . . . . . . . . . . . . . . . . . . Part Schematics Acquired . | . . . . . . . . . . . . . . . . . . . . . . . . . . . . Parts Damaged . | . . . . . . . . . . . . . . . . . . . . . . . . . . . . Bothacking | -11 -10 -10 -10 -9 -9 -6 -6 -6 -6 -5 -5 -5 -5 -5 -4 -4 -4 -4 -4 -3 -3 -3 -2 -2 -2 -1 -1 ------------ Run | Yrd Mat Min Sub Rec Scr Fac Low Low Dat Pro Fac Upp Upp War Pro Fac Upp Upp Zhi Pro Res Qua Res Tes Sec Acc Com Used RIF Installer . | . . . . . . . . . . . . . . . . . . . . . . . . . . . . Robots Hacked . | . . . . . . . . . . . . . . . . . . . . . . . . . . . . Non-combat . | . . . . . . . . . . . . . . . . . . . . . . . . . . . . Combat . | . . . . . . . . . . . . . . . . . . . . . . . . . . . . Robot Hacks Applied . | . . . . . . . . . . . . . . . . . . . . . . . . . . . . Relay Couplers Released 3 | . . . . . . . . . . . . . . . . . . . . . . . . . 1 2 . Machine Destruction 3 | . . . . . . . . . . . . . . . . . . . . . . . . . 1 2 . Fabnet Peak Effective % . | . . . . . . . . . . . . . . . . . . . . . . . . . . . . Robots Rewired 7 | . . . . . . . 2 . . . . . . 5 . . . . . . . . . . . . . Allies Hacked . | . . . . . . . . . . . . . . . . . . . . . . . . . . . . Hacks Repelled . | . . . . . . . . . . . . . . . . . . . . . . . . . . . . Allies | -11 -10 -10 -10 -9 -9 -6 -6 -6 -6 -5 -5 -5 -5 -5 -4 -4 -4 -4 -4 -3 -3 -3 -2 -2 -2 -1 -1 -------- Run | Yrd Mat Min Sub Rec Scr Fac Low Low Dat Pro Fac Upp Upp War Pro Fac Upp Upp Zhi Pro Res Qua Res Tes Sec Acc Com Total Allies 40 | . . . . . . . 2 . . . . . . 5 . . . . . . . . . . 2 20 11 Largest Group 10 | . . . . . . . 2 2 . . . . . 5 . . . . . . . . . . 2 10 7 Highest-Rated Group 271 | . . . . . . . 50 50 . . . . . 271 . . . . . . . . . . 146 174 267 Highest-Rated Ally 89 | . . . . . . . 30 30 . . . . . 68 . . . . . . . . . . 82 58 89 Initial UFD Resources 36 | . . . . . . 23 23 23 23 26 26 26 26 26 29 29 29 29 29 31 31 31 33 33 33 36 36 Total Orders 2 | . . . . . . . . . . . . . . 2 . . . . . . . . . . . . . STAY 2 | . . . . . . . . . . . . . . 2 . . . . . . . . . . . . . Ally Attacks 104 | . . . . . . . . 4 . . . . . 7 . . . . . . . . . . 6 33 54 Total Damage 2734 | . . . . . . . . 107 . . . . . 167 . . . . . . . . . . 193 1030 1237 Kills 19 | . . . . . . . . 1 . . . . . 1 . . . . . . . . . . 1 6 10 Allies Corrupted . | . . . . . . . . . . . . . . . . . . . . . . . . . . . . Allies Melted . | . . . . . . . . . . . . . . . . . . . . . . . . . . . . X0-1V1 Amusement Gains 802 | . 10 . 16 20 164 48 34 18 47 7 18 25 26 60 . . . . 40 . 25 40 . 11 89 63 41 Good Acts 161 | . 2 6 16 4 . 7 3 2 . 4 3 7 5 3 4 1 5 2 . 1 2 3 . 15 21 36 9 Bad Acts 120 | . 1 9 10 5 . 1 7 8 . 2 . 2 2 3 4 1 . 1 . . 7 9 2 7 20 14 5 Intel | -11 -10 -10 -10 -9 -9 -6 -6 -6 -6 -5 -5 -5 -5 -5 -4 -4 -4 -4 -4 -3 -3 -3 -2 -2 -2 -1 -1 ------- Run | Yrd Mat Min Sub Rec Scr Fac Low Low Dat Pro Fac Upp Upp War Pro Fac Upp Upp Zhi Pro Res Qua Res Tes Sec Acc Com Active Infowar (turns) 13680 | 80 714 . . . . 39 . . . . 99 322 3 . . 297 656 203 178 317 500 979 250 1541 2882 3785 835 Optics 6678 | . . . . . . . . . . . . . . . . . . . . . . . . . 2058 3785 835 Sensors 1570 | . . . . . . . . . . . . . . . . 271 486 203 163 . . 445 . . . 2 . IFF 138 | . . . . . . 39 . . . . 99 . . . . . . . . . . . . . . . . Terrain 396 | 80 316 . . . . . . . . . . . . . . . . . . . . . . . . . . Seismic 774 | 60 714 . . . . . . . . . . . . . . . . . . . . . . . . . . Spoofing 322 | . . . . . . . . . . . . 322 . . . . . . . . . . . . . . . Jamming 9890 | . . . . . . . . . . . . . . . . 27 170 . 15 317 500 979 250 1541 2139 3669 283 ECM 3 | . . . . . . . . . . . . . 3 . . . . . . . . . . . . . . Robot Analysis Total 4 | . . . . . . . . . . . . . . . . . . . 4 . . . . . . . . Derelict Logs Recovered 11 | . . 1 . . 4 . 1 . . . . 1 1 . 1 . 1 1 . . . . . . . . . Drone Launches . | . . . . . . . . . . . . . . . . . . . . . . . . . . . . Drone Recoveries . | . . . . . . . . . . . . . . . . . . . . . . . . . . . . Exploration | -11 -10 -10 -10 -9 -9 -6 -6 -6 -6 -5 -5 -5 -5 -5 -4 -4 -4 -4 -4 -3 -3 -3 -2 -2 -2 -1 -1 ------------- Run | Yrd Mat Min Sub Rec Scr Fac Low Low Dat Pro Fac Upp Upp War Pro Fac Upp Upp Zhi Pro Res Qua Res Tes Sec Acc Com Turns Passed 33149 | 193 1438 1612 1572 1004 5412 1961 1510 549 1583 265 500 577 637 1052 729 299 668 203 205 317 500 979 250 1542 2972 3785 835 Spaces Moved 14709 | 106 679 360 566 410 1010 1066 966 321 103 170 340 353 452 559 495 241 534 162 161 254 296 659 166 1080 1701 1209 290 Core 8 | 8 . . . . . . . . . . . . . . . . . . . . . . . . . . . Treads 2448 | 98 679 360 251 . . 16 . . . . . . . . . . . . . . . . . . . 842 202 Legs 10084 | . . . . 38 . 683 966 321 103 170 340 353 452 559 495 241 534 162 161 254 296 659 166 1080 1701 350 . Wheels 800 | . . . 315 371 114 . . . . . . . . . . . . . . . . . . . . . . Hover 1264 | . . . . 1 896 367 . . . . . . . . . . . . . . . . . . . . . Flight . | . . . . . . . . . . . . . . . . . . . . . . . . . . . . Fastest Speed 50 | 50 160 160 140 150 190 90 105 115 105 125 120 114 112 110 110 110 110 110 110 110 110 117 117 112 104 120 161 Average Speed 167 | 151 160 160 234 214 530 156 133 125 151 125 120 117 121 115 110 110 110 110 110 110 113 117 117 112 114 198 245 Slowest Speed 1080 | 160 240 240 480 660 1080 400 250 193 193 125 125 120 125 125 110 110 110 110 110 110 117 117 197 180 186 305 248 Overloaded Moves . | . . . . . . . . . . . . . . . . . . . . . . . . . . . . Propulsion Burnouts . | . . . . . . . . . . . . . . . . . . . . . . . . . . . . Robots Hopped . | . . . . . . . . . . . . . . . . . . . . . . . . . . . . Potential Cave-ins 5 | . . . . . . . . . . 3 . . . . . . . . . . 2 . . . . . . Cave-ins Triggered . | . . . . . . . . . . . . . . . . . . . . . . . . . . . . Teleports 8 | . . . . . . . . . . . . . . . . . . . . . . 2 . . 5 1 . Microwarps 15 | . . . . . . . . . . . . . . . . . . . . . . . . . . 1 14 Exploration Rate (%) 51 | 4 87 87 45 84 67 35 95 54 79 33 13 52 64 68 66 6 59 32 77 45 11 54 9 76 83 36 21 Regions Visited 27 Branch Regions 20 Pre-discovered Areas 8 | . . . 1 . 2 . . . 1 . . 1 . . . . . . 3 . . . . . . . . Known Exits Taken 15 | . . . 1 . . . . . . 1 1 1 . . 1 1 1 1 1 1 1 1 1 1 . 1 . Unknown Exits Taken 12 | 1 1 1 . 1 1 1 1 1 1 . . . 1 1 . . . . . . . . . . 1 . . Scrap Searched 26 | . . 1 . . 4 . 5 4 . 1 . 1 1 . 3 . 2 . . 4 . . . . . . . Spaces Dug 170 | . 6 . 3 5 . 3 2 24 . 10 5 8 . 2 15 1 . 3 . 8 6 2 4 15 21 21 6 Terrain Destroyed 1497 | . 10 . 21 7 . 80 10 72 34 44 37 50 159 113 38 4 20 3 1 9 39 24 4 37 133 338 210 Melee 58 | . . . 3 5 . . . 2 . . . . . . . . . . . . 6 2 4 15 18 3 . Projectile 276 | . 10 . 1 2 . 1 10 3 . 25 8 14 1 13 14 4 20 3 1 1 33 9 . 1 13 55 34 AOE 1078 | . . . 17 . . 79 . 67 34 19 29 36 158 100 24 . . . . 8 . 13 . 20 86 212 176 Terrain Rammed . | . . . . . . . . . . . . . . . . . . . . . . . . . . . . Walls Destroyed . | . . . . . . . . . . . . . . . . . . . . . . . . . . . . Machines Disabled . | . . . . . . . . . . . . . . . . . . . . . . . . . . . . Actions | -11 -10 -10 -10 -9 -9 -6 -6 -6 -6 -5 -5 -5 -5 -5 -4 -4 -4 -4 -4 -3 -3 -3 -2 -2 -2 -1 -1 --------- Run | Yrd Mat Min Sub Rec Scr Fac Low Low Dat Pro Fac Upp Upp War Pro Fac Upp Upp Zhi Pro Res Qua Res Tes Sec Acc Com Total 21187 | 123 911 1388 725 467 1070 1251 1106 409 1507 194 400 445 492 882 633 266 581 183 179 276 399 794 198 1284 2436 2183 405 Wait 3808 | . 140 996 21 9 37 36 58 32 1379 4 26 48 4 124 92 7 19 19 . . 45 20 12 8 181 471 20 Move 14591 | 105 678 359 565 409 1009 1065 965 320 102 169 339 352 451 558 494 240 533 161 160 253 295 658 165 1079 1700 1192 215 Hop . | . . . . . . . . . . . . . . . . . . . . . . . . . . . . Pick Up 286 | 4 15 8 29 2 9 20 5 1 3 1 8 2 1 11 2 3 . . 2 4 9 20 . 20 56 42 9 Fast Attach 188 | 7 7 1 4 2 1 18 6 8 2 . 5 2 1 12 . 1 2 . 2 2 1 7 . 19 30 43 5 Attach 150 | . 1 3 7 1 . 4 2 2 3 1 3 1 3 2 . 2 . . 2 1 3 3 3 7 31 52 13 Detach 98 | . . . . . . 10 . 2 1 1 1 2 . 14 . 1 . . . . . 3 1 5 15 36 6 Swap 312 | . 12 5 20 5 1 15 4 2 1 . 3 3 2 7 9 5 8 . 3 6 7 10 1 38 84 36 25 Drop 241 | 1 3 9 17 . 13 17 3 2 . 1 2 1 . 9 2 2 4 . 2 1 5 19 1 31 45 40 11 Fire 1128 | 6 52 6 48 14 . 44 37 20 16 17 13 32 28 50 34 5 15 3 8 9 27 44 5 26 253 232 84 Melee 219 | . . . 13 25 . 20 3 18 . . . 2 2 . . . . . . . 7 10 10 51 35 12 11 Ram 1 | . . . 1 . . . . . . . . . . . . . . . . . . . . . . . . Kick 3 | . . . . . . 1 . . . . . . . . . . . . . . . . . . 2 . . Crush 18 | . 3 1 . . . . . . . . . . . . . . . . . . . . . . . 14 . Escape Stasis 22 | . . . . . . . . . . . . . . . . . . . . . . . . . 4 12 6 Rewire 119 | . . . . . . . 23 . . . . . . 95 . . . . . . . . . . . 1 . Trap 3 | . . . . . . 1 . 2 . . . . . . . . . . . . . . . . . . . Miscellaneous . | . . . . . . . . . . . . . . . . . . . . . . . . . . . . Route ------- -11/Scrapyard -10/Materials (discovered 4 exits: [*Mat x2] / [*Min] / *Sub) -10/Mines (discovered 4 exits: [*Mat x2] / [*Exi] / *Sub) -10/Subcaves (discovered 3 exits: Mat x2 / *Rec) -9/Recycling (discovered 2 exits: [*Fac] / *Scr) -9/Scraptown -6/Factory (discovered 3 exits: *Fac x2 / *Low) -6/Lower Caves -6/Lower Caves (discovered 2 exits: *Fac / *Dat) -6/Data Miner -5/Proximity Caves -5/Factory (discovered 2 exits: *Upp x2) -5/Upper Caves -5/Upper Caves -5/Warlord -4/Proximity Caves -4/Factory -4/Upper Caves -4/Upper Caves (discovered 2 exits: Res / *Zhi) -4/Zhirov -3/Proximity Caves -3/Research (discovered 3 exits: *Arm / *Qua x2) -3/Quarantine -2/Research (discovered 2 exits: *Tes x2) -2/Testing (discovered 3 exits: *Acc / *Sec / [*Frg]) -2/Section 7 -1/Access (discovered 2 exits: *Sur / *Com) -1/Command To Fleet Rendezvous History --------- Turn | Location | Event 5 | -11/Scrapyard | Discovered new exit (range 15) 194 | -11/Scrapyard | Entered Materials 309 | -10/Materials | Build established: Mutant 410 | -10/Materials | Discovered new exit (range 6) 451 | -10/Materials | Discovered new exit (range 15) 1006 | -10/Materials | Discovered new exit (range 15) 1384 | -10/Materials | Discovered new exit (range 9) 1472 | -10/Materials | Prayed at D.C.S.S. Altar Unit 1515 | -10/Materials | Core integrity restored by X0-1V1 (+37) 1541 | -10/Materials | Core integrity fell below 50% 1632 | -10/Materials | Entered Mines 1664 | -10/Mines | Joined a pair of Derelicts in attacking an 0b10 outpost 1723 | -10/Mines | Energy capacity permanently improved by X0-1V1 (+200; -100 max core) 1769 | -10/Mines | Discovered new exit (range 4) 1769 | -10/Mines | X0-1V1 sent you into danger 1974 | -10/Mines | Build established: Scavenger-Mutant 1992 | -10/Mines | Deemed a non-threat by the Exiles lab entrance 1994 | -10/Mines | Discovered new exit (range 5) 2040 | -10/Mines | Found a damaged Exp. Sensor Array with a note attached 2046 | -10/Mines | Found Prototype Device 2117 | -10/Mines | Discovered new exit (range 8) 2133 | -10/Mines | Discovered new exit (range 8) 2355 | -10/Mines | Core integrity restored by X0-1V1 (+22) 2480 | -10/Mines | Weapon slot count permanently improved by X0-1V1 (+1) 2504 | -10/Mines | X0-1V1 added 0b10 threat records associated with you (minor) 2733 | -10/Mines | X0-1V1 added 0b10 threat records associated with you (minor) 2786 | -10/Mines | Build established: Scavenger-Gunner 2923 | -10/Mines | X0-1V1 mutated your Propulsion slot to Power slot 3101 | -10/Mines | X0-1V1 mutated your Weapon slot to Propulsion slot 3167 | -10/Mines | X0-1V1 added 0b10 threat records associated with you (major) 3230 | -10/Mines | X0-1V1 activates XOMVISION 3244 | -10/Mines | Core integrity permanently improved by X0-1V1 (+350) 3244 | -10/Mines | Entered Subcaves 3245 | -10/Subcaves | Approached by a straggling Scientist 3246 | -10/Subcaves | Shifting Twisted Machinery released Battle Rifle 3289 | -10/Subcaves | Shifting Twisted Machinery released Sub. Shrapnel Launcher 3372 | -10/Subcaves | Visited 4L-MR0's lab 3393 | -10/Subcaves | Found Prototype Device 3405 | -10/Subcaves | Found Arachnoskeleton 3525 | -10/Subcaves | Learned location of Zion (-7) 3525 | -10/Subcaves | Met a Zionite searching for "candidates" 3557 | -10/Subcaves | X0-1V1 mutated your Propulsion slot to Weapon slot 3574 | -10/Subcaves | Ambushed by swarm of Subdwellers 3615 | -10/Subcaves | Lost 3 allies 3618 | -10/Subcaves | Destroyed 7 combat bots 3619 | -10/Subcaves | Lost 3 parts (2p1w) 3648 | -10/Subcaves | Identified exit to Materials 3648 | -10/Subcaves | X0-1V1 revealed exit location to -8/Materials 3923 | -10/Subcaves | Identified exit to Recycling 3923 | -10/Subcaves | X0-1V1 revealed exit location to -9/Recycling 3930 | -10/Subcaves | X0-1V1 mutated your Weapon slot to Propulsion slot 4040 | -10/Subcaves | X0-1V1 revealed exit location to -8/Materials 4076 | -10/Subcaves | Identified Sfc. Transmogrifier 4076 | -10/Subcaves | Forcibly received Sfc. Transmogifier from X0-1V1 4077 | -10/Subcaves | A swath of the cavern ceiling suddenly collapsed 4412 | -10/Subcaves | Build established: Mutant 4553 | -10/Subcaves | Core integrity restored by X0-1V1 (+85) 4578 | -10/Subcaves | X0-1V1 activates XOMVISION 4660 | -10/Subcaves | Ambushed by Subdwellers from Twisted Machinery 4665 | -10/Subcaves | X0-1V1 whisked you away to safety 4678 | -10/Subcaves | X0-1V1 mutated your Propulsion slot to Utility slot 4751 | -10/Subcaves | Core integrity restored by X0-1V1 (+75) 4794 | -10/Subcaves | X0-1V1 sent you into danger 4803 | -10/Subcaves | A swath of the cavern ceiling suddenly collapsed 4816 | -10/Subcaves | Entered Recycling 5046 | -9/Recycling | X0-1V1 sent you into danger 5117 | -9/Recycling | X0-1V1 activates XOMVISION 5158 | -9/Recycling | Discovered new exit (range 16) 5304 | -9/Recycling | Core integrity restored by X0-1V1 (+145) 5609 | -9/Recycling | X0-1V1 sent hostile G-34 Mercenary (x3) 5650 | -9/Recycling | Core integrity fell below 20% 5775 | -9/Recycling | Scanned before Scraplab entrance 5803 | -9/Recycling | Entered Scraplab 5818 | -9/Recycling | Discovered new exit (range 2) 5820 | -9/Recycling | Entered Scraptown 5820 | -9/Scraptown | System corruption cleaned by C-Scrubber 5896 | -9/Scraptown | Heard Great Nut preacher, LISTEN AND RECITE! 5921 | -9/Scraptown | Learned location of Extension (-4) 6170 | -9/Scraptown | Visited UFD Registry 6559 | -9/Scraptown | Scanned Subdweller tech in exchange for log data 6583 | -9/Scraptown | Learned Factory stockpile data 6591 | -9/Scraptown | Learned Factory security intel 6598 | -9/Scraptown | Learned location of 2 exits from Proximity Caves 6879 | -9/Scraptown | Visited Cyclists 6998 | -9/Scraptown | Registered with UFD as "Toolbay" 7136 | -9/Scraptown | Entered Cyclist Reading Room 7406 | -9/Scraptown | Visited IN-MT5's Study 8586 | -9/Scraptown | Visited Shadow of the Wyrm 8731 | -9/Scraptown | Visited SPCMW 9321 | -9/Scraptown | Visited Scrapoid Pod Storage 9365 | -9/Scraptown | Found Scrapoid Pod 9546 | -9/Scraptown | Visited Scrap Suit Storage 9685 | -9/Scraptown | Visited Junk Repository 9809 | -9/Scraptown | Visited Modified Component R&D 10088 | -9/Scraptown | Visited Scrapoid Research Area 10183 | -9/Scraptown | Visited Research Penetration Think Tank 10300 | -9/Scraptown | Visited Abandonware Association 10371 | -9/Scraptown | Learned abandonware demo "REVENGE.EXE" 10558 | -9/Scraptown | Delivered Scrap Shield to a Scientist 10821 | -9/Scraptown | Visited Science Guys 10884 | -9/Scraptown | Visited Curators Association 10939 | -9/Scraptown | Visited Observation Area 11126 | -9/Scraptown | Met Optimus 11126 | -9/Scraptown | Accepted into 0bPrime 11229 | -9/Scraptown | Discovered new exit (range 3) 11232 | -9/Scraptown | Entered Factory 11232 | -6/Factory | Evolved 8 slots: Propulsion x5, Utility x1, Weapon x2 11233 | -6/Factory | Attached Arachnoskeleton, gained temporary slots: Propulsion x3 11280 | -6/Factory | Assembled infested ambush trap array 11341 | -6/Factory | X0-1V1 whisked you away to safety 11379 | -6/Factory | Spotted B-75 Beast 11498 | -6/Factory | Discovered new exit (range 11) 11568 | -6/Factory | X0-1V1 foreshadows a heat wave 11721 | -6/Factory | Build established: Gunner 11759 | -6/Factory | Ambient heat levels rising (+10) 11949 | -6/Factory | Discovered new exit (range 4) 11960 | -6/Factory | Identified exit to Factory 12035 | -6/Factory | Cargo convoy interrupted 12056 | -6/Factory | Ambient heat levels rising (+10) 12237 | -6/Factory | X0-1V1 sent you to a vault 12258 | -6/Factory | X0-1V1 added 0b10 threat records associated with you (minor) 12283 | -6/Factory | Found Prototype Device 12283 | -6/Factory | Identified Skeleton Box 12339 | -6/Factory | Ambient heat levels falling (-10) 12517 | -6/Factory | Ambient heat levels falling (-10) 13169 | -6/Factory | Discovered new exit (range 5) 13193 | -6/Factory | Entered Lower Caves 13195 | -6/Lower Caves | UFD Scientist delivered a prototype 13208 | -6/Lower Caves | Found Prototype Protection 13509 | -6/Lower Caves | Found Prototype Device 13570 | -6/Lower Caves | Murdered Warlord Statue 13698 | -6/Lower Caves | Spotted B-75 Beast 13740 | -6/Lower Caves | Destroyed B-75 Beast 13927 | -6/Lower Caves | Learned Factory non-interactive machine intel 14094 | -6/Lower Caves | Hvy. Plasma Cannon reconfigured into Item Mimic 14199 | -6/Lower Caves | Attracted the attention of an 0b10 outpost 14241 | -6/Lower Caves | System corruption reached 10% 14254 | -6/Lower Caves | Discovered new exit (range 6) 14498 | -6/Lower Caves | X0-1V1 vaporized surrounding terrain (radius 21) 14703 | -6/Lower Caves | Entered another Lower Caves area 14703 | -6/Lower Caves | Accompanied by 2 allies 14703 | -6/Lower Caves | Discovered exit to Factory (range 12) 14852 | -6/Lower Caves | X0-1V1 vaporized surrounding terrain (radius 22) 14893 | -6/Lower Caves | Encountered a Warlord checkpoint 14934 | -6/Lower Caves | X0-1V1 sent you into danger 14935 | -6/Lower Caves | Attracted the attention of an 0b10 base 14987 | -6/Lower Caves | Core integrity fell below 50% 15024 | -6/Lower Caves | Lost 8 parts (1p3n4w) 15156 | -6/Lower Caves | X0-1V1 sent you into danger 15239 | -6/Lower Caves | Discovered new exit (range 7) 15252 | -6/Lower Caves | Entered Data Miner 15252 | -6/Data Miner | Discovered new exit (range 6) 15289 | -6/Data Miner | Met Data Miner 15335 | -6/Data Miner | Learned location of Section 7 (-2) 15335 | -6/Data Miner | Acquired the access code to Warlord's prototype stash 15346 | -6/Data Miner | Received God Mode back door access code from Data Miner 15364 | -6/Data Miner | Build established: Derelict-Gunner 15725 | -6/Data Miner | Build established: Gunner 16746 | -6/Data Miner | Attached CPS modules to Data Miner 16746 | -6/Data Miner | Data Conduit disabled 16809 | -6/Data Miner | Lost 6 parts (2p1n3w) 16835 | -6/Data Miner | Entered Proximity Caves 17002 | -5/Proximity Caves | Spotted B-75 Beast 17011 | -5/Proximity Caves | Core integrity restored by X0-1V1 (+242) 17100 | -5/Proximity Caves | Attracted the attention of an 0b10 checkpoint 17100 | -5/Proximity Caves | Entered Factory 17100 | -5/Factory | Evolved 2 slots: Utility x2 17101 | -5/Factory | Loaded intel: 218 non-interactive machine locations 17269 | -5/Factory | X0-1V1 released a cloud of subatomizers 17476 | -5/Factory | Repaired Lrn. Missile Launcher 17515 | -5/Factory | Discovered new exit (range 10) 17570 | -5/Factory | Identified exit to Upper Caves 17587 | -5/Factory | X0-1V1 revealed exit location to -5/Upper Caves 17600 | -5/Factory | Entered Upper Caves 17653 | -5/Upper Caves | Build established: Tank 17805 | -5/Upper Caves | Acquired the password to a Derelict Tinkerer's latest research 17815 | -5/Upper Caves | Found Prototype Special Weapon 17815 | -5/Upper Caves | Identified Molecular Deconstructor 17851 | -5/Upper Caves | Learned location of Armory (-3) 17930 | -5/Upper Caves | Identified exit to Upper Caves 17930 | -5/Upper Caves | X0-1V1 revealed exit location to -5/Upper Caves 18011 | -5/Upper Caves | Caught by Unaware searching for contraband prototypes 18077 | -5/Upper Caves | Caught by Unaware searching for contraband prototypes 18169 | -5/Upper Caves | X0-1V1 vaporized surrounding terrain (radius 22) 18177 | -5/Upper Caves | Entered another Upper Caves area 18179 | -5/Upper Caves | Attracted the attention of an 0b10 checkpoint 18441 | -5/Upper Caves | Learned Factory emergency access door positions 18677 | -5/Upper Caves | X0-1V1 sent hostile Thug (x4) 18707 | -5/Upper Caves | Discovered new exit (range 11) 18814 | -5/Upper Caves | Entered Warlord 18908 | -5/Warlord | Opened Warlord's prototype stash 18912 | -5/Warlord | Found Prototype Reactor 18919 | -5/Warlord | Found Prototype Device 18919 | -5/Warlord | Identified Exp. Phase Shifter 18935 | -5/Warlord | Found Prototype Device 18935 | -5/Warlord | Identified Thermal Barrier 18938 | -5/Warlord | Found Prototype Processor 18938 | -5/Warlord | Identified Exp. Armor Integrity Analyzer 18945 | -5/Warlord | Found Prototype Hackware 19046 | -5/Warlord | Identified Enh. Scrap Shield 19066 | -5/Warlord | Found Prototype Energy Gun 19258 | -5/Warlord | Visited the Vortex Lab 19267 | -5/Warlord | Found Prototype Energy Cannon 19270 | -5/Warlord | Found Prototype Energy Cannon 19270 | -5/Warlord | Identified Vortex Cannon (x2) 19274 | -5/Warlord | Warlord's base attacked by MAIN.C 19502 | -5/Warlord | Build established: Commander-Tank 19595 | -5/Warlord | Warlord forces counterattacked 19623 | -5/Warlord | X0-1V1 activates XOMVISION 19627 | -5/Warlord | Spotted Executioner 19636 | -5/Warlord | Destroyed 9 combat bots 19644 | -5/Warlord | Destroyed Executioner 19649 | -5/Warlord | Spotted Executioner 19659 | -5/Warlord | Destroyed Executioner 19667 | -5/Warlord | Lost 3 allies 19694 | -5/Warlord | Spotted Striker 19711 | -5/Warlord | System corruption reached 10% 19719 | -5/Warlord | Destroyed 14 combat bots 19726 | -5/Warlord | Discovered new exit (range 16) 19779 | -5/Warlord | Spotted Executioner 19780 | -5/Warlord | Spotted Executioner 19782 | -5/Warlord | Spotted Executioner 19814 | -5/Warlord | Identified Vortex Chain Reactor 19817 | -5/Warlord | Found Prototype Processor 19825 | -5/Warlord | Lost 9 allies 19866 | -5/Warlord | Entered Proximity Caves 19867 | -4/Proximity Caves | Identified exit to Factory 19917 | -4/Proximity Caves | X0-1V1 vaporized surrounding terrain (radius 17) 19951 | -4/Proximity Caves | Spotter reported a threat 20066 | -4/Proximity Caves | X0-1V1 vaporized surrounding terrain (radius 17) 20150 | -4/Proximity Caves | Build established: Tank 20260 | -4/Proximity Caves | Received a Behemoth hack from an annoying Tinkerer 20319 | -4/Proximity Caves | Attracted the attention of an 0b10 base 20437 | -4/Proximity Caves | Learned Research stockpile data 20437 | -4/Proximity Caves | Learned 8 Research zone layouts 20595 | -4/Proximity Caves | Entered Factory 20595 | -4/Factory | Evolved 2 slots: Utility x2 20596 | -4/Factory | Identified Exp. Sensor Array 20597 | -4/Factory | Identified Exp. Targeting Computer 20800 | -4/Factory | Allied Derelicts emerged from ambush trap array 20882 | -4/Factory | Discovered new exit (range 6) 20887 | -4/Factory | Identified exit to Upper Caves 20894 | -4/Factory | Entered Upper Caves 20922 | -4/Upper Caves | Build established: Scavenger-Skirmisher 21029 | -4/Upper Caves | Attracted the attention of an 0b10 base 21275 | -4/Upper Caves | Learned Research terminal intel 21418 | -4/Upper Caves | Build established: Skirmisher 21536 | -4/Upper Caves | Discovered new exit (range 8) 21542 | -4/Upper Caves | Identified exit to Upper Caves 21562 | -4/Upper Caves | Entered another Upper Caves area 21583 | -4/Upper Caves | System corruption reached 10% 21599 | -4/Upper Caves | Identified exit to Zhirov 21599 | -4/Upper Caves | X0-1V1 revealed exit location to -4/Zhirov 21697 | -4/Upper Caves | Learned Research terminal intel 21729 | -4/Upper Caves | Identified exit to Research 21729 | -4/Upper Caves | X0-1V1 revealed exit location to -3/Research 21765 | -4/Upper Caves | Entered Zhirov 21765 | -4/Zhirov | Discovered new exit (range 3) 21805 | -4/Zhirov | Learned location of Quarantine (-3) 21805 | -4/Zhirov | Learned location of Testing (-2) 21805 | -4/Zhirov | Learned location of Command (-1) 21838 | -4/Zhirov | Found Alien Artifact 21838 | -4/Zhirov | Identified Integrated Reactor 21838 | -4/Zhirov | Installed Integrated Reactor, increased core energy generation (+10) 21902 | -4/Zhirov | Cloak Generator disabled 21912 | -4/Zhirov | Enhanced Grunts warped into view 21924 | -4/Zhirov | Found Alien Artifact 21963 | -4/Zhirov | Lost 4 parts (3u1w) 21963 | -4/Zhirov | Lost 9 allies 21966 | -4/Zhirov | Identified exit to Proximity Caves 21970 | -4/Zhirov | Entered Proximity Caves 22251 | -3/Proximity Caves | Discovered exit to Research (range 6) 22273 | -3/Proximity Caves | Spotted B-86 Titan 22287 | -3/Proximity Caves | Entered Research 22287 | -3/Research | Evolved 2 slots: Utility x1, Weapon x1 22288 | -3/Research | Identified exit to Quarantine 22289 | -3/Research | Identified exit to Armory 22291 | -3/Research | Loaded intel: 24 terminal locations 22321 | -3/Research | System corruption reached 10% 22433 | -3/Research | Identified Ghost Barrier 22498 | -3/Research | X0-1V1 redirected Transport squads to designated parking area 22750 | -3/Research | Build established: Hacker-Tank 22787 | -3/Research | Entered Quarantine 22887 | -3/Quarantine | X0-1V1 mutated your Utility slot to Weapon slot 23306 | -3/Quarantine | Found Alien Artifact 23356 | -3/Quarantine | X0-1V1 sent hostile H-77 Assassin (x2) 23395 | -3/Quarantine | Found Alien Artifact 23395 | -3/Quarantine | Identified Dimensional Node Initializer 23395 | -3/Quarantine | Initialized slip node 23402 | -3/Quarantine | Found Alien Artifact 23402 | -3/Quarantine | Identified Transdimensional Reconstructor (x2) 23402 | -3/Quarantine | Warped through subspace to slip node 23410 | -3/Quarantine | Found Alien Artifact 23410 | -3/Quarantine | Identified Hpw. Transdimensional Reconstructor 23410 | -3/Quarantine | Warped through subspace to slip node 23420 | -3/Quarantine | Found Transdimensional Reconstructor 23422 | -3/Quarantine | Found Hpw. Transdimensional Reconstructor 23514 | -3/Quarantine | Identified Plasma Storm 23515 | -3/Quarantine | Found Alien Impact Weapon 23542 | -3/Quarantine | Found Alien Artifact 23542 | -3/Quarantine | Identified Phase Redirector 23564 | -3/Quarantine | Build established: Executioner 23595 | -3/Quarantine | Discovered new exit (range 16) 23616 | -3/Quarantine | Identified exit to Research 23720 | -3/Quarantine | X0-1V1 activates XOMVISION 23748 | -3/Quarantine | X0-1V1 redirected Transport squads to designated parking area 23759 | -3/Quarantine | Found Alien Artifact 23766 | -3/Quarantine | Entered Research 23766 | -2/Research | Evolved 2 slots: Utility x2 23766 | -2/Research | Identified Phase Armor 23767 | -2/Research | Loaded intel: 24 terminal locations 23787 | -2/Research | Identified exit to Testing 24016 | -2/Research | Entered Testing 24203 | -2/Testing | Spotted Striker 24223 | -2/Testing | Found Prototype Device 24223 | -2/Testing | Identified Exp. Transmission Jammer 24240 | -2/Testing | Spotted Striker 24367 | -2/Testing | Found Prototype Ballistic Gun 24367 | -2/Testing | Identified Hyp. Multirail 24426 | -2/Testing | Found Prototype Reactor 24426 | -2/Testing | Identified Zero-point Reactor 24574 | -2/Testing | Found Exp. Weapon Cycler 24622 | -2/Testing | Discovered new exit (range 3) 24826 | -2/Testing | System corruption reached 10% 24867 | -2/Testing | Build established: Scavenger-Executioner 24867 | -2/Testing | Found Hvy. Scimitar of Distortion 24959 | -2/Testing | Found Prototype Energy Cannon 24959 | -2/Testing | Identified Cld. Nova Cannon 25009 | -2/Testing | Found Prototype Energy Gun 25009 | -2/Testing | Identified Tachyon Dispersion Ray 25093 | -2/Testing | Found Prototype Energy Cannon 25093 | -2/Testing | Identified Potential Cannon 25096 | -2/Testing | Found Prototype Energy Cannon 25096 | -2/Testing | Identified Imp. Potential Cannon 25189 | -2/Testing | Found Prototype Ballistic Cannon 25189 | -2/Testing | Identified Perforator 25271 | -2/Testing | X0-1V1 added 0b10 threat records associated with you (major) 25414 | -2/Testing | Identified Core Stripper 25419 | -2/Testing | Spotted Fortress 25434 | -2/Testing | Destroyed Fortress 25452 | -2/Testing | Found Prototype Device 25452 | -2/Testing | Identified Exp. Force Field 25455 | -2/Testing | Found Prototype Device 25455 | -2/Testing | Identified Exp. EM Shield 25456 | -2/Testing | Identified exit to Section 7 25456 | -2/Testing | X0-1V1 revealed exit location to -2/Section 7 25553 | -2/Testing | Discovered new exit (range 6) 25556 | -2/Testing | X0-1V1 enhanced Transport squad support 25558 | -2/Testing | Entered Section 7 25581 | -2/Section 7 | Found Alien Artifact 25581 | -2/Section 7 | Identified Integrated Mediator 25581 | -2/Section 7 | Installed Integrated Mediator, increased core attachment efficiency 25635 | -2/Section 7 | Scanned by Researcher 25754 | -2/Section 7 | X0-1V1 announced a LAN party 25773 | -2/Section 7 | Destroyed 7 combat bots 25775 | -2/Section 7 | Discovered new exit (range 12) 25802 | -2/Section 7 | Spotted S7 Guard 25808 | -2/Section 7 | First assault squad dispatched 25815 | -2/Section 7 | Found Alien Artifact 25815 | -2/Section 7 | Identified Core Regenerator 25815 | -2/Section 7 | Used Core Regenerator, restored core integrity (+385) 25997 | -2/Section 7 | X0-1V1 mutated your Utility slot to Propulsion slot 26038 | -2/Section 7 | Intercept squad dispatched 26047 | -2/Section 7 | Spotted Tracker 26047 | -2/Section 7 | Destroyed Tracker 26048 | -2/Section 7 | Spotted Tracker 26050 | -2/Section 7 | Destroyed Tracker 26061 | -2/Section 7 | Found Exp. Targeting Computer 26074 | -2/Section 7 | Spotted Combat Programmer 26078 | -2/Section 7 | Spotted Combat Programmer 26080 | -2/Section 7 | Destroyed Combat Programmer 26080 | -2/Section 7 | Destroyed Combat Programmer 26243 | -2/Section 7 | Spotted S7 Guard 26247 | -2/Section 7 | Destroyed 10 combat bots 26252 | -2/Section 7 | Found Alien Artifact 26252 | -2/Section 7 | Identified Core Physics Calibrator 26265 | -2/Section 7 | Spotted S7 Guard 26273 | -2/Section 7 | Found Alien Artifact 26273 | -2/Section 7 | Identified Core Membrane 26273 | -2/Section 7 | Installed Core Membrane, gained immunity to corruption 26289 | -2/Section 7 | Destroyed S7 Guard 26343 | -2/Section 7 | Destroyed 8 combat bots 26353 | -2/Section 7 | Spotted B-90 Cyclops 26383 | -2/Section 7 | Found Integrated Reactor 26393 | -2/Section 7 | Warped through subspace 26403 | -2/Section 7 | Garrison activated, responded to threat 26404 | -2/Section 7 | High security lockdown imminent 26445 | -2/Section 7 | Warped through subspace 26445 | -2/Section 7 | Spotted Executioner 26445 | -2/Section 7 | Spotted Executioner 26451 | -2/Section 7 | Destroyed Executioner 26453 | -2/Section 7 | Destroyed Executioner 26467 | -2/Section 7 | Found Prototype Processor 26474 | -2/Section 7 | Destroyed 10 combat bots 26475 | -2/Section 7 | Found Prototype Processor 26484 | -2/Section 7 | High security lockdown engaged 26512 | -2/Section 7 | Found Transdimensional Reconstructor 26514 | -2/Section 7 | Found Transdimensional Reconstructor 26517 | -2/Section 7 | Installed Integrated Reactor, increased core energy generation (+10) 26521 | -2/Section 7 | Found Transdimensional Reconstructor 26568 | -2/Section 7 | Spotted B-99 Colossus 26620 | -2/Section 7 | Found Alien Artifact 26620 | -2/Section 7 | Identified Core Reset Matrix 26620 | -2/Section 7 | Identified Subatomic Replicator 26620 | -2/Section 7 | Used Core Reset Matrix 26621 | -2/Section 7 | Intercept squad dispatched 26624 | -2/Section 7 | Detected hypermatrix surge 26624 | -2/Section 7 | Sensed 12 artifacts in vicinity 26651 | -2/Section 7 | Spotted Tracker 26654 | -2/Section 7 | Spotted Tracker 26654 | -2/Section 7 | Spotted Tracker 26654 | -2/Section 7 | Destroyed Tracker 26657 | -2/Section 7 | Destroyed Tracker 26665 | -2/Section 7 | Destroyed Tracker 26692 | -2/Section 7 | Spotted Combat Programmer 26696 | -2/Section 7 | Destroyed Combat Programmer 26719 | -2/Section 7 | Found LRC Energy Well 26719 | -2/Section 7 | Installed LRC Energy Well, increased energy storage capacity (+250) 26722 | -2/Section 7 | Found LRC Storage 26722 | -2/Section 7 | Installed LRC Storage, increased inventory capacity (+2) 26732 | -2/Section 7 | Spotted Combat Programmer 26737 | -2/Section 7 | Spotted Combat Programmer 26739 | -2/Section 7 | Destroyed Combat Programmer 26742 | -2/Section 7 | Destroyed Combat Programmer 26866 | -2/Section 7 | Destroyed 13 combat bots 26880 | -2/Section 7 | Spotted Striker 26884 | -2/Section 7 | Destroyed Striker 26905 | -2/Section 7 | Destroyed 7 combat bots 26942 | -2/Section 7 | Destroyed Investigator 26969 | -2/Section 7 | Build established: Alien-Executioner 26977 | -2/Section 7 | Destroyed 10 combat bots 27037 | -2/Section 7 | X0-1V1 sent you into danger 27037 | -2/Section 7 | Warped through subspace 27038 | -2/Section 7 | Core integrity fell below 50% 27038 | -2/Section 7 | Warped through subspace 27038 | -2/Section 7 | Spotted Executioner 27038 | -2/Section 7 | Spotted Executioner 27045 | -2/Section 7 | Destroyed Executioner 27052 | -2/Section 7 | Destroyed Executioner 27071 | -2/Section 7 | Found Prototype Processor 27071 | -2/Section 7 | Identified Exp. Core Analyzer (x3) 27074 | -2/Section 7 | Found Prototype Processor 27076 | -2/Section 7 | Found Exp. Core Analyzer 27090 | -2/Section 7 | Identified Exp. Targeting Computer 27106 | -2/Section 7 | Spotted Striker 27118 | -2/Section 7 | Destroyed Striker 27174 | -2/Section 7 | Destroyed 13 combat bots 27183 | -2/Section 7 | Warped through subspace 27240 | -2/Section 7 | Destroyed 8 combat bots 27255 | -2/Section 7 | Spotted Striker 27255 | -2/Section 7 | Spotted Executioner 27256 | -2/Section 7 | Destroyed Executioner 27267 | -2/Section 7 | Destroyed Striker 27285 | -2/Section 7 | Sterilization system engaged 27285 | -2/Section 7 | Non-combat units ordered to evacuate 27295 | -2/Section 7 | Lost 6 parts (1p3n1u1w) 27299 | -2/Section 7 | X0-1V1 whisked you away to safety 27331 | -2/Section 7 | Spotted Executioner 27333 | -2/Section 7 | Spotted Striker 27342 | -2/Section 7 | Destroyed 13 combat bots 27354 | -2/Section 7 | Spotted Executioner 27355 | -2/Section 7 | Destroyed Executioner 27385 | -2/Section 7 | Combat units ordered to evacuate 27388 | -2/Section 7 | Destroyed Executioner 27393 | -2/Section 7 | X0-1V1 turns hostiles against one another 27395 | -2/Section 7 | X0-1V1 activates XOMVISION 27412 | -2/Section 7 | Destroyed Striker 27433 | -2/Section 7 | Destroyed 25 combat bots 27440 | -2/Section 7 | Lost 4 parts (1p1n2u) 27585 | -2/Section 7 | Ambient heat levels rising (+10) 27679 | -2/Section 7 | Build established: Scavenger-Gunner 27734 | -2/Section 7 | Used Subatomic Replicator to create Supercharged Integrated Reactor 27735 | -2/Section 7 | Ambient heat levels rising (+10) 27738 | -2/Section 7 | Installed Supercharged Integrated Reactor, increased core energy generation (+15) 27885 | -2/Section 7 | Ambient heat levels rising (+10) 27888 | -2/Section 7 | Found Prototype Device 27888 | -2/Section 7 | Identified Exp. Actuator Array 27930 | -2/Section 7 | X0-1V1 sent hostile S-43 Plague (x4) 28035 | -2/Section 7 | Ambient heat levels rising (+10) 28052 | -2/Section 7 | X0-1V1 vaporized surrounding terrain (radius 19) 28094 | -2/Section 7 | Destroyed S7 Guard 28185 | -2/Section 7 | Ambient heat levels rising (+10) 28204 | -2/Section 7 | Found Microwarp Drive 28328 | -2/Section 7 | Build established: Scavenger-Executioner 28335 | -2/Section 7 | Ambient heat levels rising (+10) 28426 | -2/Section 7 | Core integrity restored by X0-1V1 (+289) 28485 | -2/Section 7 | Ambient heat levels rising (+10) 28505 | -2/Section 7 | Discovered new exit (range 11) 28530 | -2/Section 7 | Entered Access 28530 | -1/Access | Evolved 2 slots (calibrated): Power x1, -Propulsion x1, Utility x4, -Weapon x2 28591 | -1/Access | X0-1V1 added 0b10 threat records associated with you (minor) 28685 | -1/Access | Identified exit to Surface 28685 | -1/Access | X0-1V1 revealed exit location to -0/Surface 28780 | -1/Access | First assault squad dispatched 28785 | -1/Access | X0-1V1 sent you to a vault 28947 | -1/Access | X0-1V1 activates XOMVISION 28974 | -1/Access | Lost 3 allies 28977 | -1/Access | X0-1V1 sent allied H-77 Assassin (x2) 28981 | -1/Access | Intercept squad dispatched 28998 | -1/Access | Spotted Tracker 28999 | -1/Access | Spotted Tracker 29016 | -1/Access | Destroyed Tracker 29020 | -1/Access | Destroyed Tracker 29022 | -1/Access | Identified exit to Command 29022 | -1/Access | X0-1V1 revealed exit location to -1/Command 29027 | -1/Access | Spotted Combat Programmer 29029 | -1/Access | Destroyed Combat Programmer 29036 | -1/Access | Spotted Combat Programmer 29041 | -1/Access | Destroyed Combat Programmer 29077 | -1/Access | Destroyed 14 combat bots 29433 | -1/Access | Destroyed 10 combat bots 29483 | -1/Access | Build established: Scavenger-Tank 29552 | -1/Access | X0-1V1 activates XOMVISION 29608 | -1/Access | High security lockdown imminent 29657 | -1/Access | Destroyed 9 combat bots 29678 | -1/Access | X0-1V1 mutated your Propulsion slot to Weapon slot 29688 | -1/Access | High security lockdown engaged 29728 | -1/Access | X0-1V1 destroyed Energy Cycler 29728 | -1/Access | Energy Cycler disabled 29791 | -1/Access | Destroyed Executioner 29898 | -1/Access | Destroyed 8 combat bots 29963 | -1/Access | Destroyed Executioner 29963 | -1/Access | Spotted Striker 29963 | -1/Access | Spotted Executioner 29970 | -1/Access | Destroyed Striker 29972 | -1/Access | Build established: Scavenger-Gunner 29976 | -1/Access | Destroyed Executioner 30092 | -1/Access | Spotted Executioner 30099 | -1/Access | Destroyed Executioner 30118 | -1/Access | X0-1V1 whisked you away to safety 30148 | -1/Access | Destroyed 10 combat bots 30202 | -1/Access | Spotted Striker 30203 | -1/Access | Spotted Striker 30203 | -1/Access | Spotted Executioner 30208 | -1/Access | Destroyed Striker 30208 | -1/Access | Destroyed Striker 30221 | -1/Access | Destroyed Executioner 30238 | -1/Access | Lost 3 parts (2p1u) 30258 | -1/Access | Found Prototype Protection 30258 | -1/Access | Identified Centrium Heavy Armor Plating 30264 | -1/Access | Found Centrium Heavy Armor Plating 30266 | -1/Access | Destroyed 16 combat bots 30269 | -1/Access | Found Centrium Heavy Armor Plating 30272 | -1/Access | Spotted Executioner 30272 | -1/Access | Spotted Striker 30278 | -1/Access | Destroyed Executioner 30286 | -1/Access | Destroyed Striker 30330 | -1/Access | Destroyed 12 combat bots 30395 | -1/Access | System corruption reached 10% 30435 | -1/Access | Spotted Striker 30435 | -1/Access | Spotted Investigator 30442 | -1/Access | Spotted Executioner 30442 | -1/Access | Spotted Executioner 30450 | -1/Access | Destroyed Executioner 30453 | -1/Access | Sterilization system engaged 30453 | -1/Access | Destroyed Executioner 30459 | -1/Access | Spotted Striker 30459 | -1/Access | Spotted Striker 30462 | -1/Access | Destroyed Executioner 30474 | -1/Access | Destroyed Striker 30484 | -1/Access | Destroyed Striker 30505 | -1/Access | Destroyed 18 combat bots 30520 | -1/Access | Destroyed Striker 30525 | -1/Access | Spotted Executioner 30535 | -1/Access | Spotted Executioner 30575 | -1/Access | Destroyed Executioner 30581 | -1/Access | Destroyed Executioner 30599 | -1/Access | Core integrity fell below 50% 30609 | -1/Access | Lost 5 parts (1p2u2w) 30650 | -1/Access | Destroyed 7 combat bots 30719 | -1/Access | Spotted Investigator 30725 | -1/Access | Warped through subspace 30753 | -1/Access | Ambient heat levels rising (+10) 30787 | -1/Access | Build established: Alien-Gunner 30792 | -1/Access | X0-1V1 enhanced Transport squad support 30903 | -1/Access | Ambient heat levels rising (+10) 31053 | -1/Access | Ambient heat levels rising (+10) 31203 | -1/Access | Ambient heat levels rising (+10) 31239 | -1/Access | Spotted Executioner 31242 | -1/Access | Destroyed Executioner 31303 | -1/Access | Spotted Striker 31304 | -1/Access | Spotted Striker 31353 | -1/Access | Ambient heat levels rising (+10) 31355 | -1/Access | Destroyed Striker 31374 | -1/Access | Destroyed Striker 31503 | -1/Access | Ambient heat levels rising (+10) 31653 | -1/Access | Ambient heat levels rising (+10) 31754 | -1/Access | Found Prototype Launcher 31754 | -1/Access | Identified Ragnarok Missile Launcher 31762 | -1/Access | Found Ragnarok Missile Launcher 31765 | -1/Access | Found Ragnarok Missile Launcher 31803 | -1/Access | Ambient heat levels rising (+10) 31849 | -1/Access | Build established: Alien-Tank 31899 | -1/Access | Core integrity restored by X0-1V1 (+277) 31944 | -1/Access | Spotted B-99 Colossus 31953 | -1/Access | Ambient heat levels rising (+10) 31992 | -1/Access | Destroyed B-99 Colossus 32088 | -1/Access | Found Unknown Device 32103 | -1/Access | Ambient heat levels rising (+10) 32178 | -1/Access | Assembled infested ambush trap array 32252 | -1/Access | Build established: Scavenger-Tank 32253 | -1/Access | Ambient heat levels rising (+10) 32282 | -1/Access | Lost 7 allies 32315 | -1/Access | Entered Command 32360 | -1/Command | X0-1V1 sent you to a vault 32380 | -1/Command | Spotted B-99 Colossus 32389 | -1/Command | Destroyed B-99 Colossus 32437 | -1/Command | Found Prototype Ballistic Gun 32437 | -1/Command | Identified Multirail 32442 | -1/Command | Found Unknown Protection 32535 | -1/Command | High security lockdown imminent 32553 | -1/Command | Build established: Alien-Tank 32615 | -1/Command | High security lockdown engaged 32873 | -1/Command | Build established: Scavenger-Tank 32885 | -1/Command | X0-1V1 rewrote Electro 10c IFF filter 32959 | -1/Command | Spotted Striker 32959 | -1/Command | Spotted Striker 32959 | -1/Command | Spotted Executioner 32966 | -1/Command | Destroyed Executioner 32966 | -1/Command | Destroyed Striker 32978 | -1/Command | Destroyed Striker 33007 | -1/Command | Spotted Striker 33007 | -1/Command | Spotted Executioner 33007 | -1/Command | Spotted Executioner 33007 | -1/Command | Spotted Striker 33019 | -1/Command | Spotted Investigator 33026 | -1/Command | Destroyed 18 combat bots 33035 | -1/Command | Lost 3 parts (1p2u) 33037 | -1/Command | Identified Hvy. Reflective Plating 33110 | -1/Command | Destroyed Striker 33129 | -1/Command | Spotted B-99 Colossus 33129 | -1/Command | X0-1V1 whisked you away to safety 33137 | -1/Command | Spotted Executioner 33140 | -1/Command | Spotted Executioner 33140 | -1/Command | Spotted Striker 33143 | -1/Command | Emitted hypermatrix ping 33144 | -1/Command | Spotted Executioner 33144 | -1/Command | Spotted Striker 33146 | -1/Command | Spotted Executioner 33146 | -1/Command | Spotted Alpha 7 33146 | -1/Command | Spotted Executioner 33146 | -1/Command | Spotted Executioner 33146 | -1/Command | Spotted Striker 33146 | -1/Command | Spotted Alpha 7 33146 | -1/Command | Spotted B-99 Colossus 33147 | -1/Command | Spotted B-99 Colossus 33147 | -1/Command | Discovered exit to Surface (range 5) 33148 | -1/Command | Assembled emerged from beneath the floor 33149 | -1/Command | Destroyed 8 combat bots 33150 | *** | Heading to fleet! Last Messages --------------- 33146_ Slug penetrates Wall. 33146_ Penetrated by Slug. 33146_ Slug penetrates Wall. 33146_ Penetrated by Slug. 33146_ Slug penetrates Wall. 33147_ Microwarped (distance 8). 33147_ Penetrated by Slug. 33147_ Slug penetrates Access Shell. 33147_ Access Shell breached. 33147_ EXIT=FOUND: SURFACE 33147_ Penetrated by Slug. 33147_ Slug penetrates Wall. 33147_ Penetrated by Slug. 33147_ Slug penetrates Access Shell. 33147_ Penetrated by Slug. 33147_ Enh. Nova Cannon destroyed. 33147_ Slug penetrates B-99 Colossus. 33148_ Microwarped (distance 2). 33149_ Microwarped (distance 3). 33150_ Slug penetrates Access Shell. Map ----- +----------------------------------------------------+ | ????????????????##"##???????????????????# #?????? | | ????????????????????????????????????????# ####### | | ????????????????????????????????????????# | | ????????????????????????????????????????# | | ????????????????????????????????????????# ####### | | ????????????????????????????????????????? #?????? | | ????????????????????????????????????????? #?????? | | ????????????????????????????????????????? #?????? | | ????????????????????????????????????????? #?????? | | ????????????????????????????????????????? /?????? | | ????????????????????????????????????????? #?????? | | ????????????????????????????????????????? ??????? | | ????????????????????????????????????????? ??????? | | ????????????????????????????????????????? ??????? | | ?????????????????????????????????????????????????? | | ?????????????????????????????????????????????????? | | ?????????????????????????????????????????????????? | | ?????????????????????????????????????????????????? | | ?????????????????????????????????????????????????? | | ???????????????????####??????????????????????????? | | ???????????????????# ??????????????????????????? | | ???????????????????# ??????????????????????????? | | ???????????????????# ??????????????????????????? | | ???????????????????# """"""???#????????????????? | | ???????????????????# " "?? #????????????????? | | ???????????????????# " @" "? #????????????????? | | ???????????????????# " "" "? #????????????????? | | ???????????????????# #????????????????? | | ???????????????????# """" #????????????????? | | ???????????????????# % #????????????????? | | ???????????????????#BB % BB#????????????????? | | ???????????????????#BB BB#????????????????? | | ???????????????????#### "###????????????????? | | ?????????????????????? #??????????????????? | | ?????????????????????## ^ ##??????????????????? | | ?????????????????????? % #??????????????????? | | ?????????????????????## ##??????????????????? | | ?????????????????????#% #??????????????????? | | ????? ?????????????## ##??????????????????? | | ??? ?????????????? #??????????????????? | | ??? ??????????????# ##??????????????????? | | ??? ##????????????# #???????????????????? | | ?? #????????????##////"#???????????????????? | | ?? #?????????????? #"#####??????????????? | | ?? +?????????????? # #??????????????? | | ??? #?????????????? # #??????????????? | | #???????####### + ! #??????????????? | | #???????+ # #??????????????? | | #???????# # #??????????????? | | % ######### # ! #??????????????? | +----------------------------------------------------+ Best States ------------- Heat Dissipation 264 Coolant Potential 65 Energy Generation 104 Energy Capacity 2850 Matter Stores 1000 Matter Capacity 1000 Sight Range 29 Robot Scan Range 20 Terrain Scan Range 16 Terrain Scan Density 10 Jamming Range 22 Additional Mass Support 12 EM Shielding 4 Armor Coverage 3600 Resistance: KI 47 Resistance: TH 50 Resistance: EM 95 Power Shielding 66 Weapon Cycling 30 Phase Shifting 20 Evasion (%) 102 Targeting Accuracy 20 Core Analysis 12 Armor Integrity Analysis 50 Recoil Reduction 5 Energy Filtering 50 Offensive Hacking 14 Defensive Hacking 20 Item Schematics ----------------- Imp. Energy Well | -2/Section 7 | Archive Imp. Q-thruster | -2/Section 7 | Archive Robot Schematics ------------------ A-27 Freighter | -2/Section 7 | Archive Fabricated ------------ Nothing Repaired ---------- Lrn. Missile Launcher | 8% | -5/Factory Studied --------- None Alien Tech Used ----------------- Integrated Reactor Dimensional Node Initializer Transdimensional Reconstructor High-powered Transdimensional Reconstructor Phase Redirector Phase Armor Core Stripper Integrated Mediator Core Regenerator Core Physics Calibrator Core Membrane Core Reset Matrix LRC Energy Well LRC Storage Subatomic Replicator Supercharged Integrated Reactor Microwarp Drive Achievements -------------- None Challenges ------------ None Game ------ Seed ThrusterLightningPurifier Manual? 0 Play Time 04:48:40 Cumulative 1301.1 hours Start 2026.06.28 @ 00:33:28 End 2026.06.28 @ 14:55:07 Sessions 5 Manual Loads 0 Difficulty Rogue Special Mode None Game No. 409 Rogue 407 Adventurer 2 Explorer 0 Win Type 2 Total 110 Types 33/25/25/2/1/1/17/2/1/3 Lore% 98 Gallery% 92 Achievement% 91 Wizard Run 0 Options --------- Layout 0 ASCII 0 Keyboard 1 Movement Numpad Keybinds 0 Fullscreen 1 Font 24/Smallcaps Map View 76x50 Zoom Use 0% Tactical HUD 1 Map Filters NONE Filters NONE Steam 1 RUN: 8dff9eb1-ad6d-4086-ba17-a3327a377f66